{"text_format":"1","workbook":"xlsx","n_sheets":12,"sheets":["programdata","nameperson","SPEED","JUMPOFF","TO.V","TO.V.S","T.T","PRINT","diff","followup","joker","personal.data"],"not_rendered":{"charts":0,"images":2,"macros":1,"external_links":0,"defined_names":0,"comments":0,"pivot_tables":0},"unopened":[],"bounds":{"document_bytes":16777216,"sheet_cells":100000,"rows_first":2000,"rows_last":500,"rows_between":2000,"halvings":0,"cell_chars":16384,"cell_head_chars":4096},"cells_cut":0,"cells_raw":0,"read":"whole","date_system":"1900"}

{"sheet":"programdata","index":0,"n_rows":207,"n_cols":35,"rows_kept":207,"cut":false,"hidden":false,"merged":[[0,0,0,16383],[1,12,3,12],[1,13,3,14],[1,16,3,18],[1,20,3,25],[1,27,3,30],[1,32,3,35],[1,0,3,0],[1,1,3,2],[1,4,3,4],[1,5,3,6],[1,8,3,8],[1,9,3,10]]}
["name.xlsx"]
["speed","ص",null,null,"speed","الثاني",null,null,"2v","الثالث",null,null,"2vs","الرابع",null,null,"Target Timer",null,null,null,"followup \\ التتابع",null,null,null,null,null,null,"JUMPOFF-X",null,null,null,null,"Joker"]
[]
[]
["م","الاسم","الجواد",null,"م","الاسم","الجواد",null,"م","الاسم","الجواد",null,"م","الاسم","الجواد",null,"م","الاسم","الجواد",null,"م","الاسم","الفارس الأول","الفارس الثاني","الجواد الأول","الجواد الثاني",null,"م","الاسم","الجواد","الزمن",null,"م","الاسم","الجواد"]
[1,"أحمد ضعافي كلبي ","السكب ",null,1,"أحمد ضعافي كلبي ","السكب ",null,1,"أحمد ضعافي كلبي ","السكب ",null,1,"أحمد ضعافي كلبي ","السكب ",null,1,"أحمد ضعافي كلبي ","السكب ",null,1,"s","كتن ","محمد أحمد الأشقر ","السكب ","سدرك",null,null,null,null,null,null,1,"أحمد ضعافي كلبي ","السكب "]
[null,null,null,null,2,"محمد أحمد الأشقر ","كتن ",null,2,"محمد أحمد الأشقر ","كتن ",null,2,"محمد أحمد الأشقر ","كتن ",null,2,"s","كتن ",null,2,"إبراهيم جوخبي ","عزام ","s","عزام ","كتن ",null,null,null,null,null,null,2,"محمد أحمد الأشقر ","كتن "]
[null,null,null,null,3,null,null,null,3,"إبراهيم جوخبي ","عزام ",null,3,"إبراهيم جوخبي ","عزام ",null,3,"إبراهيم جوخبي ","عزام ",null,3,"جمال رضوان","سدرك","إبراهيم جوخبي ","سدرك","عزام ",null,null,null,null,null,null,3,"إبراهيم جوخبي ","عزام "]
[null,null,null,null,4,null,null,null,4,null,null,null,4,"جمال رضوان","سدرك",null,4,"جمال رضوان","سدرك",null,4,"محمد أحمد الأشقر ","سدرك","جمال رضوان","سدرك","سدرك",null,null,null,null,null,null,4,"جمال رضوان","سدرك"]
[null,null,null,null,5,null,null,null,null,null,null,null,null,"محمد أحمد الأشقر ","سدرك",null,null,"محمد أحمد الأشقر ","سدرك",null,5,"s","كتن ","محمد أحمد الأشقر ","كتن ","سدرك",null,null,null,null,null,null,5,"محمد عقيلي","دونا"]
[null,null,null,null,6,null,null,null,null,null,null,null,null,null,null,null,null,null,null,null,6,"إبراهيم جوخبي ","عزام ","إبراهيم جوخبي ","عزام ","سدرك",null,null,null,null,null,null,6,"محمد أحمد الأشقر ","كتن "]
[null,null,null,null,7,null,null,null,null,null,null,null,null,null,null,null,null,null,null,null,null,null,null,null,null,null,null,null,null,null,null,null,7,"إبراهيم جوخبي ","عزام "]
[null,null,null,null,8]
[null,null,null,null,9]
[null,null,null,null,10]
[null,null,null,null,11]
[null,null,null,null,12]
[]
[]
[]
[]
[]
[]
[]
[]
[]
[]
[]
[]
[]
[]
[]
[]
[]
[]
[]
[]
[]
[]
[]
[]
[]
[]
[]
[]
[]
[]
[]
[]
[]
[]
[]
[]
[]
[]
[]
[]
[]
[]
[]
[]
[]
[]
[]
[]
[]
[]
[]
[]
[]
[]
[]
[]
[]
[]
[]
[]
[]
[]
[]
[]
[]
[]
[]
[]
[]
[]
[]
[]
[]
[]
[]
[]
[]
[]
[]
[]
[]
[]
[]
[]
[]
[]
[]
[]
[]
[]
[]
[]
[]
[]
[]
[]
[]
[]
[]
[]
[]
[]
[]
[]
[]
[]
[]
[]
[]
[]
[]
[]
[]
[]
[]
[]
[]
[]
[]
[]
[]
[]
[]
[]
[]
[]
[]
[]
[]
[]
[]
[]
[]
[]
[]
[]
[]
[]
[]
[]
[]
[]
[]
[]
[]
[]
[]
[]
[]
[]
[]
[]
[]
[]
[]
[]
[]
[]
[]
[]
[]
[]
[]
[]
[]
[]
[]
[]
[]
[]
[]
[]
[]
[]
[]
[]
[]
[]
[]
[]
[]
[]
[]
[]
[]
[]
[]
[]
[]
[null,null,null,null,100]

{"sheet":"nameperson","index":1,"n_rows":104,"n_cols":35,"rows_kept":104,"cut":false,"hidden":false,"merged":[[0,32,2,35],[0,0,2,0],[0,5,2,6],[0,4,2,4],[0,8,2,8],[0,9,2,10],[0,20,2,25],[0,27,2,30],[0,16,2,18],[0,1,2,2],[0,13,2,14],[0,12,2,12]]}
["speed","ص",null,null,"speed","الثاني",null,null,"2v","الثالث",null,null,"2vs","الرابع",null,null,"Target Timer",null,null,null,"followup \\ التتابع",null,null,null,null,null,null,"JUMPOFF-X",null,null,null,null,"Joker"]
[]
[]
["م","الاسم","الجواد",null,"م","الاسم","الجواد",null,"م","الاسم","الجواد",null,"م","الاسم","الجواد",null,"م","الاسم","الجواد",null,"م","الاسم","الفارس الأول","الفارس الثاني","الجواد الأول","الجواد الثاني",null,"م","الاسم","الجواد","الزمن",null,"م","الاسم","الجواد"]
[1,null,null,null,1,null,null,null,1,null,null,null,1,null,null,null,1,null,null,null,1,null,null,null,null,null,null,1,null,null,null,null,1]
[2,null,null,null,2,null,null,null,2,null,null,null,2,null,null,null,2,null,null,null,2,null,null,null,null,null,null,2,null,null,null,null,2]
[3,null,null,null,3,null,null,null,3,null,null,null,3,null,null,null,3,null,null,null,3,null,null,null,null,null,null,3,null,null,null,null,3]
[4,null,null,null,4,null,null,null,4,null,null,null,4,null,null,null,4,null,null,null,4,null,null,null,null,null,null,4,null,null,null,null,4]
[5,null,null,null,5,null,null,null,5,null,null,null,5,null,null,null,5,null,null,null,5,null,null,null,null,null,null,5,null,null,null,null,5]
[6,null,null,null,6,null,null,null,6,null,null,null,6,null,null,null,6,null,null,null,6,null,null,null,null,null,null,6,null,null,null,null,6]
[7,null,null,null,7,null,null,null,7,null,null,null,7,null,null,null,7,null,null,null,7,null,null,null,null,null,null,7,null,null,null,null,7]
[8,null,null,null,8,null,null,null,8,null,null,null,8,null,null,null,8,null,null,null,8,null,null,null,null,null,null,8,null,null,null,null,8]
[9,null,null,null,9,null,null,null,9,null,null,null,9,null,null,null,9,null,null,null,9,null,null,null,null,null,null,9,null,null,null,null,9]
[10,null,null,null,10,null,null,null,10,null,null,null,10,null,null,null,10,null,null,null,10,null,null,null,null,null,null,10,null,null,null,null,10]
[11,null,null,null,11,null,null,null,11,null,null,null,11,null,null,null,11,null,null,null,11,null,null,null,null,null,null,11,null,null,null,null,11]
[12,null,null,null,12,null,null,null,12,null,null,null,12,null,null,null,12,null,null,null,12,null,null,null,null,null,null,12,null,null,null,null,12]
[13,null,null,null,13,null,null,null,13,null,null,null,13,null,null,null,13,null,null,null,13,null,null,null,null,null,null,13,null,null,null,null,13]
[14,null,null,null,14,null,null,null,14,null,null,null,14,null,null,null,14,null,null,null,14,null,null,null,null,null,null,14,null,null,null,null,14]
[15,null,null,null,15,null,null,null,15,null,null,null,15,null,null,null,15,null,null,null,15,null,null,null,null,null,null,15,null,null,null,null,15]
[16,null,null,null,16,null,null,null,16,null,null,null,16,null,null,null,16,null,null,null,16,null,null,null,null,null,null,16,null,null,null,null,16]
[17,null,null,null,17,null,null,null,17,null,null,null,17,null,null,null,17,null,null,null,17,null,null,null,null,null,null,17,null,null,null,null,17]
[18,null,null,null,18,null,null,null,18,null,null,null,18,null,null,null,18,null,null,null,18,null,null,null,null,null,null,18,null,null,null,null,18]
[19,null,null,null,19,null,null,null,19,null,null,null,19,null,null,null,19,null,null,null,19,null,null,null,null,null,null,19,null,null,null,null,19]
[20,null,null,null,20,null,null,null,20,null,null,null,20,null,null,null,20,null,null,null,20,null,null,null,null,null,null,20,null,null,null,null,20]
[21,null,null,null,21,null,null,null,21,null,null,null,21,null,null,null,21,null,null,null,21,null,null,null,null,null,null,21,null,null,null,null,21]
[22,null,null,null,22,null,null,null,22,null,null,null,22,null,null,null,22,null,null,null,22,null,null,null,null,null,null,22,null,null,null,null,22]
[23,null,null,null,23,null,null,null,23,null,null,null,23,null,null,null,23,null,null,null,23,null,null,null,null,null,null,23,null,null,null,null,23]
[24,null,null,null,24,null,null,null,24,null,null,null,24,null,null,null,24,null,null,null,24,null,null,null,null,null,null,24,null,null,null,null,24]
[25,null,null,null,25,null,null,null,25,null,null,null,25,null,null,null,25,null,null,null,25,null,null,null,null,null,null,25,null,null,null,null,25]
[26,null,null,null,26,null,null,null,26,null,null,null,26,null,null,null,26,null,null,null,26,null,null,null,null,null,null,26,null,null,null,null,26]
[27,null,null,null,27,null,null,null,27,null,null,null,27,null,null,null,27,null,null,null,27,null,null,null,null,null,null,27,null,null,null,null,27]
[28,null,null,null,28,null,null,null,28,null,null,null,28,null,null,null,28,null,null,null,28,null,null,null,null,null,null,28,null,null,null,null,28]
[29,null,null,null,29,null,null,null,29,null,null,null,29,null,null,null,29,null,null,null,29,null,null,null,null,null,null,29,null,null,null,null,29]
[30,null,null,null,30,null,null,null,30,null,null,null,30,null,null,null,30,null,null,null,30,null,null,null,null,null,null,30,null,null,null,null,30]
[31,null,null,null,31,null,null,null,31,null,null,null,31,null,null,null,31,null,null,null,31,null,null,null,null,null,null,31,null,null,null,null,31]
[32,null,null,null,32,null,null,null,32,null,null,null,32,null,null,null,32,null,null,null,32,null,null,null,null,null,null,32,null,null,null,null,32]
[33,null,null,null,33,null,null,null,33,null,null,null,33,null,null,null,33,null,null,null,33,null,null,null,null,null,null,33,null,null,null,null,33]
[34,null,null,null,34,null,null,null,34,null,null,null,34,null,null,null,34,null,null,null,34,null,null,null,null,null,null,34,null,null,null,null,34]
[35,null,null,null,35,null,null,null,35,null,null,null,35,null,null,null,35,null,null,null,35,null,null,null,null,null,null,35,null,null,null,null,35]
[36,null,null,null,36,null,null,null,36,null,null,null,36,null,null,null,36,null,null,null,36,null,null,null,null,null,null,36,null,null,null,null,36]
[37,null,null,null,37,null,null,null,37,null,null,null,37,null,null,null,37,null,null,null,37,null,null,null,null,null,null,37,null,null,null,null,37]
[38,null,null,null,38,null,null,null,38,null,null,null,38,null,null,null,38,null,null,null,38,null,null,null,null,null,null,38,null,null,null,null,38]
[39,null,null,null,39,null,null,null,39,null,null,null,39,null,null,null,39,null,null,null,39,null,null,null,null,null,null,39,null,null,null,null,39]
[40,null,null,null,40,null,null,null,40,null,null,null,40,null,null,null,40,null,null,null,40,null,null,null,null,null,null,40,null,null,null,null,40]
[41,null,null,null,41,null,null,null,41,null,null,null,41,null,null,null,41,null,null,null,41,null,null,null,null,null,null,41,null,null,null,null,41]
[42,null,null,null,42,null,null,null,42,null,null,null,42,null,null,null,42,null,null,null,42,null,null,null,null,null,null,42,null,null,null,null,42]
[43,null,null,null,43,null,null,null,43,null,null,null,43,null,null,null,43,null,null,null,43,null,null,null,null,null,null,43,null,null,null,null,43]
[44,null,null,null,44,null,null,null,44,null,null,null,44,null,null,null,44,null,null,null,44,null,null,null,null,null,null,44,null,null,null,null,44]
[45,null,null,null,45,null,null,null,45,null,null,null,45,null,null,null,45,null,null,null,45,null,null,null,null,null,null,45,null,null,null,null,45]
[46,null,null,null,46,null,null,null,46,null,null,null,46,null,null,null,46,null,null,null,46,null,null,null,null,null,null,46,null,null,null,null,46]
[47,null,null,null,47,null,null,null,47,null,null,null,47,null,null,null,47,null,null,null,47,null,null,null,null,null,null,47,null,null,null,null,47]
[48,null,null,null,48,null,null,null,48,null,null,null,48,null,null,null,48,null,null,null,48,null,null,null,null,null,null,48,null,null,null,null,48]
[49,null,null,null,49,null,null,null,49,null,null,null,49,null,null,null,49,null,null,null,49,null,null,null,null,null,null,49,null,null,null,null,49]
[50,null,null,null,50,null,null,null,50,null,null,null,50,null,null,null,50,null,null,null,50,null,null,null,null,null,null,50,null,null,null,null,50]
[51,null,null,null,51,null,null,null,51,null,null,null,51,null,null,null,51,null,null,null,51,null,null,null,null,null,null,51,null,null,null,null,51]
[52,null,null,null,52,null,null,null,52,null,null,null,52,null,null,null,52,null,null,null,52,null,null,null,null,null,null,52,null,null,null,null,52]
[53,null,null,null,53,null,null,null,53,null,null,null,53,null,null,null,53,null,null,null,53,null,null,null,null,null,null,53,null,null,null,null,53]
[54,null,null,null,54,null,null,null,54,null,null,null,54,null,null,null,54,null,null,null,54,null,null,null,null,null,null,54,null,null,null,null,54]
[55,null,null,null,55,null,null,null,55,null,null,null,55,null,null,null,55,null,null,null,55,null,null,null,null,null,null,55,null,null,null,null,55]
[56,null,null,null,56,null,null,null,56,null,null,null,56,null,null,null,56,null,null,null,56,null,null,null,null,null,null,56,null,null,null,null,56]
[57,null,null,null,57,null,null,null,57,null,null,null,57,null,null,null,57,null,null,null,57,null,null,null,null,null,null,57,null,null,null,null,57]
[58,null,null,null,58,null,null,null,58,null,null,null,58,null,null,null,58,null,null,null,58,null,null,null,null,null,null,58,null,null,null,null,58]
[59,null,null,null,59,null,null,null,59,null,null,null,59,null,null,null,59,null,null,null,59,null,null,null,null,null,null,59,null,null,null,null,59]
[60,null,null,null,60,null,null,null,60,null,null,null,60,null,null,null,60,null,null,null,60,null,null,null,null,null,null,60,null,null,null,null,60]
[61,null,null,null,61,null,null,null,61,null,null,null,61,null,null,null,61,null,null,null,61,null,null,null,null,null,null,61,null,null,null,null,61]
[62,null,null,null,62,null,null,null,62,null,null,null,62,null,null,null,62,null,null,null,62,null,null,null,null,null,null,62,null,null,null,null,62]
[63,null,null,null,63,null,null,null,63,null,null,null,63,null,null,null,63,null,null,null,63,null,null,null,null,null,null,63,null,null,null,null,63]
[64,null,null,null,64,null,null,null,64,null,null,null,64,null,null,null,64,null,null,null,64,null,null,null,null,null,null,64,null,null,null,null,64]
[65,null,null,null,65,null,null,null,65,null,null,null,65,null,null,null,65,null,null,null,65,null,null,null,null,null,null,65,null,null,null,null,65]
[66,null,null,null,66,null,null,null,66,null,null,null,66,null,null,null,66,null,null,null,66,null,null,null,null,null,null,66,null,null,null,null,66]
[67,null,null,null,67,null,null,null,67,null,null,null,67,null,null,null,67,null,null,null,67,null,null,null,null,null,null,67,null,null,null,null,67]
[68,null,null,null,68,null,null,null,68,null,null,null,68,null,null,null,68,null,null,null,68,null,null,null,null,null,null,68,null,null,null,null,68]
[69,null,null,null,69,null,null,null,69,null,null,null,69,null,null,null,69,null,null,null,69,null,null,null,null,null,null,69,null,null,null,null,69]
[70,null,null,null,70,null,null,null,70,null,null,null,70,null,null,null,70,null,null,null,70,null,null,null,null,null,null,70,null,null,null,null,70]
[71,null,null,null,71,null,null,null,71,null,null,null,71,null,null,null,71,null,null,null,71,null,null,null,null,null,null,71,null,null,null,null,71]
[72,null,null,null,72,null,null,null,72,null,null,null,72,null,null,null,72,null,null,null,72,null,null,null,null,null,null,72,null,null,null,null,72]
[73,null,null,null,73,null,null,null,73,null,null,null,73,null,null,null,73,null,null,null,73,null,null,null,null,null,null,73,null,null,null,null,73]
[74,null,null,null,74,null,null,null,74,null,null,null,74,null,null,null,74,null,null,null,74,null,null,null,null,null,null,74,null,null,null,null,74]
[75,null,null,null,75,null,null,null,75,null,null,null,75,null,null,null,75,null,null,null,75,null,null,null,null,null,null,75,null,null,null,null,75]
[76,null,null,null,76,null,null,null,76,null,null,null,76,null,null,null,76,null,null,null,76,null,null,null,null,null,null,76,null,null,null,null,76]
[77,null,null,null,77,null,null,null,77,null,null,null,77,null,null,null,77,null,null,null,77,null,null,null,null,null,null,77,null,null,null,null,77]
[78,null,null,null,78,null,null,null,78,null,null,null,78,null,null,null,78,null,null,null,78,null,null,null,null,null,null,78,null,null,null,null,78]
[79,null,null,null,79,null,null,null,79,null,null,null,79,null,null,null,79,null,null,null,79,null,null,null,null,null,null,79,null,null,null,null,79]
[80,null,null,null,80,null,null,null,80,null,null,null,80,null,null,null,80,null,null,null,80,null,null,null,null,null,null,80,null,null,null,null,80]
[81,null,null,null,81,null,null,null,81,null,null,null,81,null,null,null,81,null,null,null,81,null,null,null,null,null,null,81,null,null,null,null,81]
[82,null,null,null,82,null,null,null,82,null,null,null,82,null,null,null,82,null,null,null,82,null,null,null,null,null,null,82,null,null,null,null,82]
[83,null,null,null,83,null,null,null,83,null,null,null,83,null,null,null,83,null,null,null,83,null,null,null,null,null,null,83,null,null,null,null,83]
[84,null,null,null,84,null,null,null,84,null,null,null,84,null,null,null,84,null,null,null,84,null,null,null,null,null,null,84,null,null,null,null,84]
[85,null,null,null,85,null,null,null,85,null,null,null,85,null,null,null,85,null,null,null,85,null,null,null,null,null,null,85,null,null,null,null,85]
[86,null,null,null,86,null,null,null,86,null,null,null,86,null,null,null,86,null,null,null,86,null,null,null,null,null,null,86,null,null,null,null,86]
[87,null,null,null,87,null,null,null,87,null,null,null,87,null,null,null,87,null,null,null,87,null,null,null,null,null,null,87,null,null,null,null,87]
[88,null,null,null,88,null,null,null,88,null,null,null,88,null,null,null,88,null,null,null,88,null,null,null,null,null,null,88,null,null,null,null,88]
[89,null,null,null,89,null,null,null,89,null,null,null,89,null,null,null,89,null,null,null,89,null,null,null,null,null,null,89,null,null,null,null,89]
[90,null,null,null,90,null,null,null,90,null,null,null,90,null,null,null,90,null,null,null,90,null,null,null,null,null,null,90,null,null,null,null,90]
[91,null,null,null,91,null,null,null,91,null,null,null,91,null,null,null,91,null,null,null,91,null,null,null,null,null,null,91,null,null,null,null,91]
[92,null,null,null,92,null,null,null,92,null,null,null,92,null,null,null,92,null,null,null,92,null,null,null,null,null,null,92,null,null,null,null,92]
[93,null,null,null,93,null,null,null,93,null,null,null,93,null,null,null,93,null,null,null,93,null,null,null,null,null,null,93,null,null,null,null,93]
[94,null,null,null,94,null,null,null,94,null,null,null,94,null,null,null,94,null,null,null,94,null,null,null,null,null,null,94,null,null,null,null,94]
[95,null,null,null,95,null,null,null,95,null,null,null,95,null,null,null,95,null,null,null,95,null,null,null,null,null,null,95,null,null,null,null,95]
[96,null,null,null,96,null,null,null,96,null,null,null,96,null,null,null,96,null,null,null,96,null,null,null,null,null,null,96,null,null,null,null,96]
[97,null,null,null,97,null,null,null,97,null,null,null,97,null,null,null,97,null,null,null,97,null,null,null,null,null,null,97,null,null,null,null,97]
[98,null,null,null,98,null,null,null,98,null,null,null,98,null,null,null,98,null,null,null,98,null,null,null,null,null,null,98,null,null,null,null,98]
[99,null,null,null,99,null,null,null,99,null,null,null,99,null,null,null,99,null,null,null,99,null,null,null,null,null,null,99,null,null,null,null,99]
[100,null,null,null,100,null,null,null,100,null,null,null,100,null,null,null,100,null,null,null,100,null,null,null,null,null,null,100,null,null,null,null,100]

{"sheet":"SPEED","index":2,"n_rows":116,"n_cols":33,"rows_kept":116,"cut":false,"hidden":false,"merged":[[0,0,7,1],[12,3,12,7],[0,2,6,9],[10,17,10,22],[19,10,20,26],[19,0,20,9],[13,3,13,7],[15,3,15,7],[17,3,17,7],[13,12,13,19],[15,12,15,19],[17,12,17,19],[13,21,13,26],[15,21,15,26],[21,28,24,31],[11,12,11,19],[11,21,11,26],[17,21,17,26]]}
["الاتحاد السعودي للفروسية ",null,"برنامج الصافنات لتحكيم قفز الحواجز"]
[]
[]
[]
[]
[]
[]
[]
["التاريخ"]
["اسم  البطوله","بطولة الصافنات ",null,null,null,null,{"$f":"COUNTA(A23:AA34)","v":26}]
["رقم الشوط",1,null,null,null,null,null,null,null,null,null,null,null,null,null,null,null,"لجنة التحكيم والتصميم"]
["اسم الشوط","الناشئين",null,null,null,null,null,null,null,null,null,null,"عبد العزيز حكمي ",null,null,null,null,null,null,null,null,"علي عريشي"]
["الارتفاع",50,"الترتيب ","ترتيب الفرسان الأوائل ",null,null,null,null,"الزمن","الأخطاء"]
["الزمن ",90,"الأول",{"$f":"B23","v":"هاني كليبي "},null,null,null,null,{"$f":"E23","v":11},{"$f":"H23","v":0},null,null,"محمد نجيب حكمي ",null,null,null,null,null,null,null,null,"عبد الرحمن سهلي "]
["المسافه"]
["السرعة",null,"الثاني",{"$f":"B24","v":0},null,null,null,null,{"$f":"E24","v":0},{"$f":"H24","v":0},null,null,"ولي عجيبي"]
["عدد الفرسان",17,null,null,null,null,null,null,null,null,null,null,null,null,null,null,null,null,null,null,null,null,null,null,null,null,null,null,1,"إمتناع"]
["نوع السباق","speed","الثالث",{"$f":"B25","v":0},null,null,null,null,{"$f":"E25","v":0},{"$f":"H25","v":0},null,null,"خالد سالمين",null,null,null,null,null,null,null,null,"علي عجيبي",null,null,null,null,null,null,2,"خطأ بالمسار"]
["الموقع","نادي الصافنات",null,null,null,null,null,null,null,null,null,null,null,null,null,null,null,null,null,null,null,null,null,null,null,null,null,null,3,"انسحاب"]
[null,null,null,null,null,null,null,null,null,null,"برنامج القفز",null,null,null,null,null,null,null,null,null,null,null,null,null,null,null,null,null,4,"اصابه"]
[null,null,null,null,null,null,null,null,null,null,null,null,null,null,null,null,null,null,null,null,null,null,null,null,null,null,null,null,5,"تجاوز زمن الانتضار"]
["م","اسم الفـــــــــاىس ","رقم الفارس","الجواد","الزمن","أخطاء الحواجز","أخطاء الزمن","مجموع الأخطاء","ملاحظه","مفتاح اساسي",1,2,3,4,5,6,"7A","7B",8,9," "," "," "," "," "," "," ",null,"اسماء الفرسان المتعثرين "]
[1,"هاني كليبي ",1,"الليث",11,0,0,0,null,"s1",0,0,0,0,0,0,0,0,0,0,0,0,0,0,0,0,0]
[null,null,null,null,null,null,null,null,null,null,null,null,null,null,null,null,null,null,null,null,null,null,null,null,null,null,null,null,null,null,null,null,"SPEED"]
[]
[null,null,null,null,null,null,null,null,null,null,null,null,null,null,null,null,null,null,null,null,null,null,null,null,null,null,null,null,"رقم ","اسم الفارس","الجواد","سبب الاستبعاد"]
[null,null,null,null,null,null,null,null,null,null,null,null,null,null,null,null,null,null,null,null,null,null,null,null,null,null,null,null,null,null,null,{"$f":"IF(AG27=\"\",\"\",VLOOKUP(AG27,$AC$17:$AD$21,2,0))","v":""}]
[null,null,null,null,null,null,null,null,null,null,null,null,null,null,null,null,null,null,null,null,null,null,null,null,null,null,null,null,null,null,null,{"$f":"IF(AG28=\"\",\"\",VLOOKUP(AG28,$AC$17:$AD$21,2,0))","v":""}]
[null,null,null,null,null,null,null,null,null,null,null,null,null,null,null,null,null,null,null,null,null,null,null,null,null,null,null,null,null,null,null,""]
[null,null,null,null,null,null,null,null,null,null,null,null,null,null,null,null,null,null,null,null,null,null,null,null,null,null,null,null,null,null,null,""]
[null,null,null,null,null,null,null,null,null,null,null,null,null,null,null,null,null,null,null,null,null,null,null,null,null,null,null,null,null,null,null,""]
[null,null,null,null,null,null,null,null,null,null,null,null,null,null,null,null,null,null,null,null,null,null,null,null,null,null,null,null,null,null,null,""]
[null,null,null,null,null,null,null,null,null,null,null,null,null,null,null,null,null,null,null,null,null,null,null,null,null,null,null,null,null,null,null,""]
[null,null,null,null,null,null,null,null,null,null,null,null,null,null,null,null,null,null,null,null,null,null,null,null,null,null,null,null,null,null,null,""]
[null,null,null,null,null,null,null,null,null,null,null,null,null,null,null,null,null,null,null,null,null,null,null,null,null,null,null,null,null,null,null,{"$f":"IF(AG35=\"\",\"\",VLOOKUP(AG35,$AC$17:$AD$21,2,0))","v":""}]
[null,null,null,null,null,null,null,null,null,null,null,null,null,null,null,null,null,null,null,null,null,null,null,null,null,null,null,null,null,null,null,{"$f":"IF(AG36=\"\",\"\",VLOOKUP(AG36,$AC$17:$AD$21,2,0))","v":""}]
[null,null,null,null,null,null,null,null,null,null,null,null,null,null,null,null,null,null,null,null,null,null,null,null,null,null,null,null,null,null,null,""]
[null,null,null,null,null,null,null,null,null,null,null,null,null,null,null,null,null,null,null,null,null,null,null,null,null,null,null,null,null,null,null,""]
[null,null,null,null,null,null,null,null,null,null,null,null,null,null,null,null,null,null,null,null,null,null,null,null,null,null,null,null,null,null,null,""]
[null,null,null,null,null,null,null,null,null,null,null,null,null,null,null,null,null,null,null,null,null,null,null,null,null,null,null,null,null,null,null,""]
[null,null,null,null,null,null,null,null,null,null,null,null,null,null,null,null,null,null,null,null,null,null,null,null,null,null,null,null,null,null,null,""]
[null,null,null,null,null,null,null,null,null,null,null,null,null,null,null,null,null,null,null,null,null,null,null,null,null,null,null,null,null,null,null,""]
[null,null,null,null,null,null,null,null,null,null,null,null,null,null,null,null,null,null,null,null,null,null,null,null,null,null,null,null,null,null,null,""]
[null,null,null,null,null,null,null,null,null,null,null,null,null,null,null,null,null,null,null,null,null,null,null,null,null,null,null,null,null,null,null,""]
[null,null,null,null,null,null,null,null,null,null,null,null,null,null,null,null,null,null,null,null,null,null,null,null,null,null,null,null,null,null,null,""]
[null,null,null,null,null,null,null,null,null,null,null,null,null,null,null,null,null,null,null,null,null,null,null,null,null,null,null,null,null,null,null,""]
[null,null,null,null,null,null,null,null,null,null,null,null,null,null,null,null,null,null,null,null,null,null,null,null,null,null,null,null,null,null,null,""]
[null,null,null,null,null,null,null,null,null,null,null,null,null,null,null,null,null,null,null,null,null,null,null,null,null,null,null,null,null,null,null,""]
[null,null,null,null,null,null,null,null,null,null,null,null,null,null,null,null,null,null,null,null,null,null,null,null,null,null,null,null,null,null,null,""]
[null,null,null,null,null,null,null,null,null,null,null,null,null,null,null,null,null,null,null,null,null,null,null,null,null,null,null,null,null,null,null,""]
[null,null,null,null,null,null,null,null,null,null,null,null,null,null,null,null,null,null,null,null,null,null,null,null,null,null,null,null,null,null,null,""]
[null,null,null,null,null,null,null,null,null,null,null,null,null,null,null,null,null,null,null,null,null,null,null,null,null,null,null,null,null,null,null,""]
[null,null,null,null,null,null,null,null,null,null,null,null,null,null,null,null,null,null,null,null,null,null,null,null,null,null,null,null,null,null,null,""]
[null,null,null,null,null,null,null,null,null,null,null,null,null,null,null,null,null,null,null,null,null,null,null,null,null,null,null,null,null,null,null,""]
[null,null,null,null,null,null,null,null,null,null,null,null,null,null,null,null,null,null,null,null,null,null,null,null,null,null,null,null,null,null,null,""]
[null,null,null,null,null,null,null,null,null,null,null,null,null,null,null,null,null,null,null,null,null,null,null,null,null,null,null,null,null,null,null,""]
[null,null,null,null,null,null,null,null,null,null,null,null,null,null,null,null,null,null,null,null,null,null,null,null,null,null,null,null,null,null,null,""]
[null,null,null,null,null,null,null,null,null,null,null,null,null,null,null,null,null,null,null,null,null,null,null,null,null,null,null,null,null,null,null,""]
[null,null,null,null,null,null,null,null,null,null,null,null,null,null,null,null,null,null,null,null,null,null,null,null,null,null,null,null,null,null,null,""]
[null,null,null,null,null,null,null,null,null,null,null,null,null,null,null,null,null,null,null,null,null,null,null,null,null,null,null,null,null,null,null,""]
[null,null,null,null,null,null,null,null,null,null,null,null,null,null,null,null,null,null,null,null,null,null,null,null,null,null,null,null,null,null,null,""]
[null,null,null,null,null,null,null,null,null,null,null,null,null,null,null,null,null,null,null,null,null,null,null,null,null,null,null,null,null,null,null,""]
[null,null,null,null,null,null,null,null,null,null,null,null,null,null,null,null,null,null,null,null,null,null,null,null,null,null,null,null,null,null,null,""]
[null,null,null,null,null,null,null,null,null,null,null,null,null,null,null,null,null,null,null,null,null,null,null,null,null,null,null,null,null,null,null,""]
[null,null,null,null,null,null,null,null,null,null,null,null,null,null,null,null,null,null,null,null,null,null,null,null,null,null,null,null,null,null,null,""]
[null,null,null,null,null,null,null,null,null,null,null,null,null,null,null,null,null,null,null,null,null,null,null,null,null,null,null,null,null,null,null,""]
[null,null,null,null,null,null,null,null,null,null,null,null,null,null,null,null,null,null,null,null,null,null,null,null,null,null,null,null,null,null,null,""]
[null,null,null,null,null,null,null,null,null,null,null,null,null,null,null,null,null,null,null,null,null,null,null,null,null,null,null,null,null,null,null,""]
[null,null,null,null,null,null,null,null,null,null,null,null,null,null,null,null,null,null,null,null,null,null,null,null,null,null,null,null,null,null,null,""]
[null,null,null,null,null,null,null,null,null,null,null,null,null,null,null,null,null,null,null,null,null,null,null,null,null,null,null,null,null,null,null,""]
[null,null,null,null,null,null,null,null,null,null,null,null,null,null,null,null,null,null,null,null,null,null,null,null,null,null,null,null,null,null,null,""]
[null,null,null,null,null,null,null,null,null,null,null,null,null,null,null,null,null,null,null,null,null,null,null,null,null,null,null,null,null,null,null,""]
[null,null,null,null,null,null,null,null,null,null,null,null,null,null,null,null,null,null,null,null,null,null,null,null,null,null,null,null,null,null,null,""]
[null,null,null,null,null,null,null,null,null,null,null,null,null,null,null,null,null,null,null,null,null,null,null,null,null,null,null,null,null,null,null,""]
[null,null,null,null,null,null,null,null,null,null,null,null,null,null,null,null,null,null,null,null,null,null,null,null,null,null,null,null,null,null,null,""]
[null,null,null,null,null,null,null,null,null,null,null,null,null,null,null,null,null,null,null,null,null,null,null,null,null,null,null,null,null,null,null,""]
[null,null,null,null,null,null,null,null,null,null,null,null,null,null,null,null,null,null,null,null,null,null,null,null,null,null,null,null,null,null,null,""]
[null,null,null,null,null,null,null,null,null,null,null,null,null,null,null,null,null,null,null,null,null,null,null,null,null,null,null,null,null,null,null,""]
[null,null,null,null,null,null,null,null,null,null,null,null,null,null,null,null,null,null,null,null,null,null,null,null,null,null,null,null,null,null,null,""]
[null,null,null,null,null,null,null,null,null,null,null,null,null,null,null,null,null,null,null,null,null,null,null,null,null,null,null,null,null,null,null,""]
[null,null,null,null,null,null,null,null,null,null,null,null,null,null,null,null,null,null,null,null,null,null,null,null,null,null,null,null,null,null,null,""]
[null,null,null,null,null,null,null,null,null,null,null,null,null,null,null,null,null,null,null,null,null,null,null,null,null,null,null,null,null,null,null,""]
[null,null,null,null,null,null,null,null,null,null,null,null,null,null,null,null,null,null,null,null,null,null,null,null,null,null,null,null,null,null,null,""]
[null,null,null,null,null,null,null,null,null,null,null,null,null,null,null,null,null,null,null,null,null,null,null,null,null,null,null,null,null,null,null,""]
[null,null,null,null,null,null,null,null,null,null,null,null,null,null,null,null,null,null,null,null,null,null,null,null,null,null,null,null,null,null,null,""]
[null,null,null,null,null,null,null,null,null,null,null,null,null,null,null,null,null,null,null,null,null,null,null,null,null,null,null,null,null,null,null,""]
[null,null,null,null,null,null,null,null,null,null,null,null,null,null,null,null,null,null,null,null,null,null,null,null,null,null,null,null,null,null,null,""]
[null,null,null,null,null,null,null,null,null,null,null,null,null,null,null,null,null,null,null,null,null,null,null,null,null,null,null,null,null,null,null,""]
[null,null,null,null,null,null,null,null,null,null,null,null,null,null,null,null,null,null,null,null,null,null,null,null,null,null,null,null,null,null,null,""]
[null,null,null,null,null,null,null,null,null,null,null,null,null,null,null,null,null,null,null,null,null,null,null,null,null,null,null,null,null,null,null,""]
[null,null,null,null,null,null,null,null,null,null,null,null,null,null,null,null,null,null,null,null,null,null,null,null,null,null,null,null,null,null,null,""]
[null,null,null,null,null,null,null,null,null,null,null,null,null,null,null,null,null,null,null,null,null,null,null,null,null,null,null,null,null,null,null,{"$f":"IF(AG92=\"\",\"\",VLOOKUP(AG92,$AC$17:$AD$21,2,0))","v":""}]
[null,null,null,null,null,null,null,null,null,null,null,null,null,null,null,null,null,null,null,null,null,null,null,null,null,null,null,null,null,null,null,""]
[null,null,null,null,null,null,null,null,null,null,null,null,null,null,null,null,null,null,null,null,null,null,null,null,null,null,null,null,null,null,null,""]
[null,null,null,null,null,null,null,null,null,null,null,null,null,null,null,null,null,null,null,null,null,null,null,null,null,null,null,null,null,null,null,""]
[null,null,null,null,null,null,null,null,null,null,null,null,null,null,null,null,null,null,null,null,null,null,null,null,null,null,null,null,null,null,null,""]
[null,null,null,null,null,null,null,null,null,null,null,null,null,null,null,null,null,null,null,null,null,null,null,null,null,null,null,null,null,null,null,""]
[null,null,null,null,null,null,null,null,null,null,null,null,null,null,null,null,null,null,null,null,null,null,null,null,null,null,null,null,null,null,null,""]
[null,null,null,null,null,null,null,null,null,null,null,null,null,null,null,null,null,null,null,null,null,null,null,null,null,null,null,null,null,null,null,""]
[null,null,null,null,null,null,null,null,null,null,null,null,null,null,null,null,null,null,null,null,null,null,null,null,null,null,null,null,null,null,null,""]
[null,null,null,null,null,null,null,null,null,null,null,null,null,null,null,null,null,null,null,null,null,null,null,null,null,null,null,null,null,null,null,""]
[null,null,null,null,null,null,null,null,null,null,null,null,null,null,null,null,null,null,null,null,null,null,null,null,null,null,null,null,null,null,null,""]
[null,null,null,null,null,null,null,null,null,null,null,null,null,null,null,null,null,null,null,null,null,null,null,null,null,null,null,null,null,null,null,""]
[null,null,null,null,null,null,null,null,null,null,null,null,null,null,null,null,null,null,null,null,null,null,null,null,null,null,null,null,null,null,null,""]
[null,null,null,null,null,null,null,null,null,null,null,null,null,null,null,null,null,null,null,null,null,null,null,null,null,null,null,null,null,null,null,""]
[null,null,null,null,null,null,null,null,null,null,null,null,null,null,null,null,null,null,null,null,null,null,null,null,null,null,null,null,null,null,null,""]
[null,null,null,null,null,null,null,null,null,null,null,null,null,null,null,null,null,null,null,null,null,null,null,null,null,null,null,null,null,null,null,""]
[null,null,null,null,null,null,null,null,null,null,null,null,null,null,null,null,null,null,null,null,null,null,null,null,null,null,null,null,null,null,null,""]
[null,null,null,null,null,null,null,null,null,null,null,null,null,null,null,null,null,null,null,null,null,null,null,null,null,null,null,null,null,null,null,""]
[null,null,null,null,null,null,null,null,null,null,null,null,null,null,null,null,null,null,null,null,null,null,null,null,null,null,null,null,null,null,null,""]
[null,null,null,null,null,null,null,null,null,null,null,null,null,null,null,null,null,null,null,null,null,null,null,null,null,null,null,null,null,null,null,""]
[null,null,null,null,null,null,null,null,null,null,null,null,null,null,null,null,null,null,null,null,null,null,null,null,null,null,null,null,null,null,null,""]
[null,null,null,null,null,null,null,null,null,null,null,null,null,null,null,null,null,null,null,null,null,null,null,null,null,null,null,null,null,null,null,""]
[null,null,null,null,null,null,null,null,null,null,null,null,null,null,null,null,null,null,null,null,null,null,null,null,null,null,null,null,null,null,null,""]
[null,null,null,null,null,null,null,null,null,null,null,null,null,null,null,null,null,null,null,null,null,null,null,null,null,null,null,null,null,null,null,""]
[null,null,null,null,null,null,null,null,null,null,null,null,null,null,null,null,null,null,null,null,null,null,null,null,null,null,null,null,null,null,null,""]

{"sheet":"JUMPOFF","index":3,"n_rows":116,"n_cols":33,"rows_kept":116,"cut":false,"hidden":false,"merged":[[21,28,24,31],[13,3,13,7],[13,12,13,19],[13,21,13,26],[15,3,15,7],[15,12,15,19],[15,21,15,26],[17,3,17,7],[17,12,17,19],[17,21,17,26],[19,0,20,9],[19,10,20,26],[12,3,12,7],[0,0,7,1],[0,2,6,9],[10,17,10,22],[11,12,11,19],[11,21,11,26]]}
["الاتحاد السعودي للفروسية ",null,"برنامج الصافنات لتحكيم قفز الحواجز"]
[]
[]
[]
[]
[]
[]
[]
["التاريخ"]
["اسم البطوله",null,null,null,null,null,{"$f":"COUNTA(A23:AA34)","v":0}]
["رقم الشوط",null,null,null,null,null,null,null,null,null,null,null,null,null,null,null,null,"لجنة التحكيم"]
["اسم الشوط"]
["الارتفاع",null,"الترتيب ","ترتيب الفرسان الأوائل ",null,null,null,null,"الزمن","الأخطاء"]
["الزمن ",null,"الأول",{"$f":"B23","v":0},null,null,null,null,{"$f":"E23","v":0},{"$f":"H23","v":0}]
["المسافه"]
["السرعة",null,"الثاني",{"$f":"B24","v":0},null,null,null,null,{"$f":"E24","v":0},{"$f":"H24","v":0}]
["عدد الفرسان",null,null,null,null,null,null,null,null,null,null,null,null,null,null,null,null,null,null,null,null,null,null,null,null,null,null,null,1,"إمتناع"]
["نوع السباق",null,"الثالث",{"$f":"B25","v":0},null,null,null,null,{"$f":"E25","v":0},{"$f":"H25","v":0},null,null,null,null,null,null,null,null,null,null,null,null,null,null,null,null,null,null,2,"خطأ بالمسار"]
["موقع البطوله",null,null,null,null,null,null,null,null,null,null,null,null,null,null,null,null,null,null,null,null,null,null,null,null,null,null,null,3,"انسحاب"]
[null,null,null,null,null,null,null,null,null,null,"برنامج القفز",null,null,null,null,null,null,null,null,null,null,null,null,null,null,null,null,null,4,"اصابه"]
[null,null,null,null,null,null,null,null,null,null,null,null,null,null,null,null,null,null,null,null,null,null,null,null,null,null,null,null,5,"تجاوز زمن الانتضار"]
["م","اسم الفـــــــــاىس ","رقم الفارس","الجواد","الزمن","أخطاء الحواجز","أخطاء الزمن","مجموع الأخطاء","ملاحظه","مفتاح اساسي",null,null,null,null,null,null,null,null,null,null,null,null,null,null,null,null,null,null,"اسماء الفرسان المتعثرين "]
[]
[null,null,null,null,null,null,null,null,null,null,null,null,null,null,null,null,null,null,null,null,null,null,null,null,null,null,null,null,null,null,null,null,"SPEED"]
[]
[null,null,null,null,null,null,null,null,null,null,null,null,null,null,null,null,null,null,null,null,null,null,null,null,null,null,null,null,"رقم ","اسم الفارس","الجواد","سبب الاستبعاد"]
[null,null,null,null,null,null,null,null,null,null,null,null,null,null,null,null,null,null,null,null,null,null,null,null,null,null,null,null,null,null,null,{"$f":"IF(AG27=\"\",\"\",VLOOKUP(AG27,$AC$17:$AD$21,2,0))","v":""}]
[null,null,null,null,null,null,null,null,null,null,null,null,null,null,null,null,null,null,null,null,null,null,null,null,null,null,null,null,null,null,null,{"$f":"IF(AG28=\"\",\"\",VLOOKUP(AG28,$AC$17:$AD$21,2,0))","v":""}]
[null,null,null,null,null,null,null,null,null,null,null,null,null,null,null,null,null,null,null,null,null,null,null,null,null,null,null,null,null,null,null,""]
[null,null,null,null,null,null,null,null,null,null,null,null,null,null,null,null,null,null,null,null,null,null,null,null,null,null,null,null,null,null,null,""]
[null,null,null,null,null,null,null,null,null,null,null,null,null,null,null,null,null,null,null,null,null,null,null,null,null,null,null,null,null,null,null,""]
[null,null,null,null,null,null,null,null,null,null,null,null,null,null,null,null,null,null,null,null,null,null,null,null,null,null,null,null,null,null,null,""]
[null,null,null,null,null,null,null,null,null,null,null,null,null,null,null,null,null,null,null,null,null,null,null,null,null,null,null,null,null,null,null,""]
[null,null,null,null,null,null,null,null,null,null,null,null,null,null,null,null,null,null,null,null,null,null,null,null,null,null,null,null,null,null,null,""]
[null,null,null,null,null,null,null,null,null,null,null,null,null,null,null,null,null,null,null,null,null,null,null,null,null,null,null,null,null,null,null,""]
[null,null,null,null,null,null,null,null,null,null,null,null,null,null,null,null,null,null,null,null,null,null,null,null,null,null,null,null,null,null,null,""]
[null,null,null,null,null,null,null,null,null,null,null,null,null,null,null,null,null,null,null,null,null,null,null,null,null,null,null,null,null,null,null,""]
[null,null,null,null,null,null,null,null,null,null,null,null,null,null,null,null,null,null,null,null,null,null,null,null,null,null,null,null,null,null,null,""]
[null,null,null,null,null,null,null,null,null,null,null,null,null,null,null,null,null,null,null,null,null,null,null,null,null,null,null,null,null,null,null,""]
[null,null,null,null,null,null,null,null,null,null,null,null,null,null,null,null,null,null,null,null,null,null,null,null,null,null,null,null,null,null,null,""]
[null,null,null,null,null,null,null,null,null,null,null,null,null,null,null,null,null,null,null,null,null,null,null,null,null,null,null,null,null,null,null,""]
[null,null,null,null,null,null,null,null,null,null,null,null,null,null,null,null,null,null,null,null,null,null,null,null,null,null,null,null,null,null,null,""]
[null,null,null,null,null,null,null,null,null,null,null,null,null,null,null,null,null,null,null,null,null,null,null,null,null,null,null,null,null,null,null,""]
[null,null,null,null,null,null,null,null,null,null,null,null,null,null,null,null,null,null,null,null,null,null,null,null,null,null,null,null,null,null,null,""]
[null,null,null,null,null,null,null,null,null,null,null,null,null,null,null,null,null,null,null,null,null,null,null,null,null,null,null,null,null,null,null,""]
[null,null,null,null,null,null,null,null,null,null,null,null,null,null,null,null,null,null,null,null,null,null,null,null,null,null,null,null,null,null,null,""]
[null,null,null,null,null,null,null,null,null,null,null,null,null,null,null,null,null,null,null,null,null,null,null,null,null,null,null,null,null,null,null,""]
[null,null,null,null,null,null,null,null,null,null,null,null,null,null,null,null,null,null,null,null,null,null,null,null,null,null,null,null,null,null,null,""]
[null,null,null,null,null,null,null,null,null,null,null,null,null,null,null,null,null,null,null,null,null,null,null,null,null,null,null,null,null,null,null,""]
[null,null,null,null,null,null,null,null,null,null,null,null,null,null,null,null,null,null,null,null,null,null,null,null,null,null,null,null,null,null,null,""]
[null,null,null,null,null,null,null,null,null,null,null,null,null,null,null,null,null,null,null,null,null,null,null,null,null,null,null,null,null,null,null,""]
[null,null,null,null,null,null,null,null,null,null,null,null,null,null,null,null,null,null,null,null,null,null,null,null,null,null,null,null,null,null,null,""]
[null,null,null,null,null,null,null,null,null,null,null,null,null,null,null,null,null,null,null,null,null,null,null,null,null,null,null,null,null,null,null,""]
[null,null,null,null,null,null,null,null,null,null,null,null,null,null,null,null,null,null,null,null,null,null,null,null,null,null,null,null,null,null,null,""]
[null,null,null,null,null,null,null,null,null,null,null,null,null,null,null,null,null,null,null,null,null,null,null,null,null,null,null,null,null,null,null,""]
[null,null,null,null,null,null,null,null,null,null,null,null,null,null,null,null,null,null,null,null,null,null,null,null,null,null,null,null,null,null,null,""]
[null,null,null,null,null,null,null,null,null,null,null,null,null,null,null,null,null,null,null,null,null,null,null,null,null,null,null,null,null,null,null,""]
[null,null,null,null,null,null,null,null,null,null,null,null,null,null,null,null,null,null,null,null,null,null,null,null,null,null,null,null,null,null,null,""]
[null,null,null,null,null,null,null,null,null,null,null,null,null,null,null,null,null,null,null,null,null,null,null,null,null,null,null,null,null,null,null,""]
[null,null,null,null,null,null,null,null,null,null,null,null,null,null,null,null,null,null,null,null,null,null,null,null,null,null,null,null,null,null,null,""]
[null,null,null,null,null,null,null,null,null,null,null,null,null,null,null,null,null,null,null,null,null,null,null,null,null,null,null,null,null,null,null,""]
[null,null,null,null,null,null,null,null,null,null,null,null,null,null,null,null,null,null,null,null,null,null,null,null,null,null,null,null,null,null,null,""]
[null,null,null,null,null,null,null,null,null,null,null,null,null,null,null,null,null,null,null,null,null,null,null,null,null,null,null,null,null,null,null,""]
[null,null,null,null,null,null,null,null,null,null,null,null,null,null,null,null,null,null,null,null,null,null,null,null,null,null,null,null,null,null,null,""]
[null,null,null,null,null,null,null,null,null,null,null,null,null,null,null,null,null,null,null,null,null,null,null,null,null,null,null,null,null,null,null,""]
[null,null,null,null,null,null,null,null,null,null,null,null,null,null,null,null,null,null,null,null,null,null,null,null,null,null,null,null,null,null,null,""]
[null,null,null,null,null,null,null,null,null,null,null,null,null,null,null,null,null,null,null,null,null,null,null,null,null,null,null,null,null,null,null,""]
[null,null,null,null,null,null,null,null,null,null,null,null,null,null,null,null,null,null,null,null,null,null,null,null,null,null,null,null,null,null,null,""]
[null,null,null,null,null,null,null,null,null,null,null,null,null,null,null,null,null,null,null,null,null,null,null,null,null,null,null,null,null,null,null,""]
[null,null,null,null,null,null,null,null,null,null,null,null,null,null,null,null,null,null,null,null,null,null,null,null,null,null,null,null,null,null,null,""]
[null,null,null,null,null,null,null,null,null,null,null,null,null,null,null,null,null,null,null,null,null,null,null,null,null,null,null,null,null,null,null,""]
[null,null,null,null,null,null,null,null,null,null,null,null,null,null,null,null,null,null,null,null,null,null,null,null,null,null,null,null,null,null,null,""]
[null,null,null,null,null,null,null,null,null,null,null,null,null,null,null,null,null,null,null,null,null,null,null,null,null,null,null,null,null,null,null,""]
[null,null,null,null,null,null,null,null,null,null,null,null,null,null,null,null,null,null,null,null,null,null,null,null,null,null,null,null,null,null,null,""]
[null,null,null,null,null,null,null,null,null,null,null,null,null,null,null,null,null,null,null,null,null,null,null,null,null,null,null,null,null,null,null,""]
[null,null,null,null,null,null,null,null,null,null,null,null,null,null,null,null,null,null,null,null,null,null,null,null,null,null,null,null,null,null,null,""]
[null,null,null,null,null,null,null,null,null,null,null,null,null,null,null,null,null,null,null,null,null,null,null,null,null,null,null,null,null,null,null,""]
[null,null,null,null,null,null,null,null,null,null,null,null,null,null,null,null,null,null,null,null,null,null,null,null,null,null,null,null,null,null,null,""]
[null,null,null,null,null,null,null,null,null,null,null,null,null,null,null,null,null,null,null,null,null,null,null,null,null,null,null,null,null,null,null,""]
[null,null,null,null,null,null,null,null,null,null,null,null,null,null,null,null,null,null,null,null,null,null,null,null,null,null,null,null,null,null,null,""]
[null,null,null,null,null,null,null,null,null,null,null,null,null,null,null,null,null,null,null,null,null,null,null,null,null,null,null,null,null,null,null,""]
[null,null,null,null,null,null,null,null,null,null,null,null,null,null,null,null,null,null,null,null,null,null,null,null,null,null,null,null,null,null,null,""]
[null,null,null,null,null,null,null,null,null,null,null,null,null,null,null,null,null,null,null,null,null,null,null,null,null,null,null,null,null,null,null,""]
[null,null,null,null,null,null,null,null,null,null,null,null,null,null,null,null,null,null,null,null,null,null,null,null,null,null,null,null,null,null,null,""]
[null,null,null,null,null,null,null,null,null,null,null,null,null,null,null,null,null,null,null,null,null,null,null,null,null,null,null,null,null,null,null,""]
[null,null,null,null,null,null,null,null,null,null,null,null,null,null,null,null,null,null,null,null,null,null,null,null,null,null,null,null,null,null,null,""]
[null,null,null,null,null,null,null,null,null,null,null,null,null,null,null,null,null,null,null,null,null,null,null,null,null,null,null,null,null,null,null,""]
[null,null,null,null,null,null,null,null,null,null,null,null,null,null,null,null,null,null,null,null,null,null,null,null,null,null,null,null,null,null,null,""]
[null,null,null,null,null,null,null,null,null,null,null,null,null,null,null,null,null,null,null,null,null,null,null,null,null,null,null,null,null,null,null,""]
[null,null,null,null,null,null,null,null,null,null,null,null,null,null,null,null,null,null,null,null,null,null,null,null,null,null,null,null,null,null,null,""]
[null,null,null,null,null,null,null,null,null,null,null,null,null,null,null,null,null,null,null,null,null,null,null,null,null,null,null,null,null,null,null,""]
[null,null,null,null,null,null,null,null,null,null,null,null,null,null,null,null,null,null,null,null,null,null,null,null,null,null,null,null,null,null,null,{"$f":"IF(AG92=\"\",\"\",VLOOKUP(AG92,$AC$17:$AD$21,2,0))","v":""}]
[null,null,null,null,null,null,null,null,null,null,null,null,null,null,null,null,null,null,null,null,null,null,null,null,null,null,null,null,null,null,null,""]
[null,null,null,null,null,null,null,null,null,null,null,null,null,null,null,null,null,null,null,null,null,null,null,null,null,null,null,null,null,null,null,""]
[null,null,null,null,null,null,null,null,null,null,null,null,null,null,null,null,null,null,null,null,null,null,null,null,null,null,null,null,null,null,null,""]
[null,null,null,null,null,null,null,null,null,null,null,null,null,null,null,null,null,null,null,null,null,null,null,null,null,null,null,null,null,null,null,""]
[null,null,null,null,null,null,null,null,null,null,null,null,null,null,null,null,null,null,null,null,null,null,null,null,null,null,null,null,null,null,null,""]
[null,null,null,null,null,null,null,null,null,null,null,null,null,null,null,null,null,null,null,null,null,null,null,null,null,null,null,null,null,null,null,""]
[null,null,null,null,null,null,null,null,null,null,null,null,null,null,null,null,null,null,null,null,null,null,null,null,null,null,null,null,null,null,null,""]
[null,null,null,null,null,null,null,null,null,null,null,null,null,null,null,null,null,null,null,null,null,null,null,null,null,null,null,null,null,null,null,""]
[null,null,null,null,null,null,null,null,null,null,null,null,null,null,null,null,null,null,null,null,null,null,null,null,null,null,null,null,null,null,null,""]
[null,null,null,null,null,null,null,null,null,null,null,null,null,null,null,null,null,null,null,null,null,null,null,null,null,null,null,null,null,null,null,""]
[null,null,null,null,null,null,null,null,null,null,null,null,null,null,null,null,null,null,null,null,null,null,null,null,null,null,null,null,null,null,null,""]
[null,null,null,null,null,null,null,null,null,null,null,null,null,null,null,null,null,null,null,null,null,null,null,null,null,null,null,null,null,null,null,""]
[null,null,null,null,null,null,null,null,null,null,null,null,null,null,null,null,null,null,null,null,null,null,null,null,null,null,null,null,null,null,null,""]
[null,null,null,null,null,null,null,null,null,null,null,null,null,null,null,null,null,null,null,null,null,null,null,null,null,null,null,null,null,null,null,""]
[null,null,null,null,null,null,null,null,null,null,null,null,null,null,null,null,null,null,null,null,null,null,null,null,null,null,null,null,null,null,null,""]
[null,null,null,null,null,null,null,null,null,null,null,null,null,null,null,null,null,null,null,null,null,null,null,null,null,null,null,null,null,null,null,""]
[null,null,null,null,null,null,null,null,null,null,null,null,null,null,null,null,null,null,null,null,null,null,null,null,null,null,null,null,null,null,null,""]
[null,null,null,null,null,null,null,null,null,null,null,null,null,null,null,null,null,null,null,null,null,null,null,null,null,null,null,null,null,null,null,""]
[null,null,null,null,null,null,null,null,null,null,null,null,null,null,null,null,null,null,null,null,null,null,null,null,null,null,null,null,null,null,null,""]
[null,null,null,null,null,null,null,null,null,null,null,null,null,null,null,null,null,null,null,null,null,null,null,null,null,null,null,null,null,null,null,""]
[null,null,null,null,null,null,null,null,null,null,null,null,null,null,null,null,null,null,null,null,null,null,null,null,null,null,null,null,null,null,null,""]
[null,null,null,null,null,null,null,null,null,null,null,null,null,null,null,null,null,null,null,null,null,null,null,null,null,null,null,null,null,null,null,""]
[null,null,null,null,null,null,null,null,null,null,null,null,null,null,null,null,null,null,null,null,null,null,null,null,null,null,null,null,null,null,null,""]
[null,null,null,null,null,null,null,null,null,null,null,null,null,null,null,null,null,null,null,null,null,null,null,null,null,null,null,null,null,null,null,""]

{"sheet":"TO.V","index":4,"n_rows":116,"n_cols":33,"rows_kept":116,"cut":false,"hidden":false,"merged":[[21,28,24,31],[13,3,13,7],[13,12,13,19],[13,21,13,26],[15,3,15,7],[15,12,15,19],[15,21,15,26],[17,3,17,7],[17,12,17,19],[17,21,17,26],[19,0,20,9],[19,10,20,26],[12,3,12,7],[0,0,7,1],[0,2,6,9],[10,17,10,22],[11,12,11,19],[11,21,11,26]]}
["الاتحاد السعودي للفروسية ",null,"برنامج الصافنات لتحكيم قفز الحواجز"]
[]
[]
[]
[]
[]
[]
[]
["التاريخ"]
["اسم البطوله","بطولة الصافنات ",50,null,null,null,{"$f":"COUNTA(A23:AA34)","v":313}]
["رقم الشوط",1,null,null,null,null,null,null,null,null,null,null,null,null,null,null,null,"لجنة التحكيم"]
["اسم الشوط","المتوسط",null,null,null,null,null,null,null,null,null,null,"عبد العزيز حكمي ",null,null,null,null,null,null,null,null,"علي عريشي"]
["الارتفاع","80-70","الترتيب ","ترتيب الفرسان الأوائل ",null,null,null,null,"الزمن","الأخطاء"]
["الزمن ",42,"الأول",{"$f":"B23","v":"محمد أحمد الأشقر "},null,null,null,null,{"$f":"E23","v":12},{"$f":"H23","v":0},null,null,"محمد نجيب حكمي ",null,null,null,null,null,null,null,null,"عبد الرحمن سهلي "]
["المسافه"]
["السرعة",null,"الثاني",{"$f":"B24","v":"عبد الرحيم رضوان عقيل "},null,null,null,null,{"$f":"E24","v":21},{"$f":"H24","v":0},null,null,"ولي عجيبي"]
["عدد الفرسان",22,null,null,null,null,null,null,null,null,null,null,null,null,null,null,null,null,null,null,null,null,null,null,null,null,null,null,1,"إمتناع"]
["نوع السباق","2v","الثالث",{"$f":"B25","v":"أحمد زعله "},null,null,null,null,{"$f":"E25","v":21.584},{"$f":"H25","v":0},null,null,"خالد سالمين",null,null,null,null,null,null,null,null,"علي عجيبي",null,null,null,null,null,null,2,"خطأ بالمسار"]
["موقع البطوله","نادي الصافنات",null,null,null,null,null,null,null,null,null,null,null,null,null,null,null,null,null,null,null,null,null,null,null,null,null,null,3,"انسحاب"]
[null,null,null,null,null,null,null,null,null,null,"برنامج القفز",null,null,null,null,null,null,null,null,null,null,null,null,null,null,null,null,null,4,"اصابه"]
[null,null,null,null,null,null,null,null,null,null,null,null,null,null,null,null,null,null,null,null,null,null,null,null,null,null,null,null,5,"تجاوز زمن الانتضار"]
["م","اسم الفـــــــــاىس ","رقم الفارس","الجواد","الزمن","أخطاء الحواجز","أخطاء الزمن","مجموع الأخطاء","ملاحظه","مفتاح اساسي",1,2,3,4,"5A","5B",6,7,8,9,10,11," "," "," "," "," ",null,"اسماء الفرسان المتعثرين "]
[1,"محمد أحمد الأشقر ",21,"كتن ",12,0,0,0,null,"to21",0,0,0,0,0,0,0,0,0,0,0,0,0,0,0,0,0]
[2,"عبد الرحيم رضوان عقيل ",8,"كراون ",21,0,0,0,"معدل","to8",0,0,0,0,0,0,0,0,0,0,0,0,0,0,0,0,0,null,null,null,null,null,"SPEED"]
[3,"أحمد زعله ",14,"دايموند",21.584,0,0,0,null,"to14",0,0,0,0,0,0,0,0,0,0,0,0,0,0,0,0,0]
[4,"محمد أحمد الأشقر ",12,"فيقن",22.1,0,0,0,null,"to12",0,0,0,0,0,0,0,0,0,0,0,0,0,0,0,0,0,null,"رقم ","اسم الفارس","الجواد","سبب الاستبعاد"]
[5,"الوليد إبراهيم الأسود ",16,"جيفاقو ",22.352,0,0,0,null,"to16",0,0,0,0,0,0,0,0,0,0,0,0,0,0,0,0,0,null,1,"محمد أحمد عقيل","سهم",{"$f":"IF(AG27=\"\",\"\",VLOOKUP(AG27,$AC$17:$AD$21,2,0))","v":"إمتناع"},1]
[6,"عزام إبراهيم البواب ",7,"جايد",23.155000000000001,0,0,0,null,"to7",0,0,0,0,0,0,0,0,0,0,0,0,0,0,0,0,0,null,2,"محمد الأشقر ","أبو لين ",{"$f":"IF(AG28=\"\",\"\",VLOOKUP(AG28,$AC$17:$AD$21,2,0))","v":"انسحاب"},3]
[7,"أحمد ضافي كليبي",13,"الجارح ",24.323,0,0,0,null,"to13",0,0,0,0,0,0,0,0,0,0,0,0,0,0,0,0,0,null,null,null,null,""]
[8,"علي غازي فقيهي ",6,"عزيزه",24.754000000000001,0,0,0,null,"to6",0,0,0,0,0,0,0,0,0,0,0,0,0,0,0,0,0,null,null,null,null,""]
[9,"أحمد ضعافي ",2,"سكب",25.35,0,0,0,null,"to2",0,0,0,0,0,0,0,0,0,0,0,0,0,0,0,0,0,null,null,null,null,""]
[10,"عادل عقيلي ",9,"محبوبه ",26.547999999999998,0,0,0,null,"to9",0,0,0,0,0,0,0,0,0,0,0,0,0,0,0,0,0,null,null,null,null,""]
[11,"عبد الوهاب عسيري",18,"براق",30.074000000000002,0,0,0,null,"to18",0,0,0,0,0,0,0,0,0,0,0,0,0,0,0,0,0,null,null,null,null,""]
[12,"إبراهيم دوخبي ",15,"عزام ",25.965,4,0,4,null,"to15",0,0,0,0,0,0,4,0,0,0,0,0,0,0,0,0,0,null,null,null,null,""]
[13,"هاني كليبي ",3,"الليث",29.065000000000001,4,0,4,null,"to3",0,0,0,0,0,0,0,0,0,0,0,4,0,0,0,0,0,null,null,null,null,""]
[14,"سامر عسيري",19,"السكب",30.495999999999999,4,0,4,null,"to19",0,0,0,0,4,0,0,0,0,0,0,0,0,0,0,0,0,null,null,null,null,""]
[15,"محمد أحمد الأشقر ",1,"كتن ",34.411000000000001,4,0,4,null,"to1",0,0,0,0,0,0,0,0,0,0,0,4,0,0,0,0,0,null,null,null,null,""]
[16,"محمد رضوان عقيل ",4,"نوارة",37.457999999999998,4,0,4,null,"to4",0,0,0,4,0,0,0,0,0,0,0,0,0,0,0,0,0,null,null,null,null,""]
[17,"جمال رضوان ",10,"سدرك",36.292999999999999,8,0,8,null,"to10",4,0,0,0,0,0,4,0,0,0,0,0,0,0,0,0,0,null,null,null,null,""]
[18,"محسن كليبي ",5,"اماندا",26.896000000000001,12,0,12,null,"to5",0,0,0,0,0,0,0,0,4,0,4,4,0,0,0,0,0,null,null,null,null,""]
[19,"أحمد مشرقي ",11,"عساف ",39.94,12,0,12,null,"to11",4,0,0,0,0,0,0,4,0,4,0,0,0,0,0,0,0,null,null,null,null,""]
[20,"أحمد ضعافي ",20,"سكب",55,0,13,13,null,"to20",0,0,0,0,0,0,0,0,0,0,0,0,0,0,0,0,0,null,null,null,null,""]
[21,"سامح منصر ",17,"سويدا",26.370999999999999,16,0,16,null,"to17",0,0,4,0,0,0,4,0,4,0,0,4,0,0,0,0,0,null,null,null,null,""]
[null,null,null,null,null,null,null,null,null,null,null,null,null,null,null,null,null,null,null,null,null,null,null,null,null,null,null,null,null,null,null,""]
[null,null,null,null,null,null,null,null,null,null,null,null,null,null,null,null,null,null,null,null,null,null,null,null,null,null,null,null,null,null,null,""]
[null,null,null,null,null,null,null,null,null,null,null,null,null,null,null,null,null,null,null,null,null,null,null,null,null,null,null,null,null,null,null,""]
[null,null,null,null,null,null,null,null,null,null,null,null,null,null,null,null,null,null,null,null,null,null,null,null,null,null,null,null,null,null,null,""]
[null,null,null,null,null,null,null,null,null,null,null,null,null,null,null,null,null,null,null,null,null,null,null,null,null,null,null,null,null,null,null,""]
[null,null,null,null,null,null,null,null,null,null,null,null,null,null,null,null,null,null,null,null,null,null,null,null,null,null,null,null,null,null,null,""]
[null,null,null,null,null,null,null,null,null,null,null,null,null,null,null,null,null,null,null,null,null,null,null,null,null,null,null,null,null,null,null,""]
[null,null,null,null,null,null,null,null,null,null,null,null,null,null,null,null,null,null,null,null,null,null,null,null,null,null,null,null,null,null,null,""]
[null,null,null,null,null,null,null,null,null,null,null,null,null,null,null,null,null,null,null,null,null,null,null,null,null,null,null,null,null,null,null,""]
[null,null,null,null,null,null,null,null,null,null,null,null,null,null,null,null,null,null,null,null,null,null,null,null,null,null,null,null,null,null,null,""]
[null,null,null,null,null,null,null,null,null,null,null,null,null,null,null,null,null,null,null,null,null,null,null,null,null,null,null,null,null,null,null,""]
[null,null,null,null,null,null,null,null,null,null,null,null,null,null,null,null,null,null,null,null,null,null,null,null,null,null,null,null,null,null,null,""]
[null,null,null,null,null,null,null,null,null,null,null,null,null,null,null,null,null,null,null,null,null,null,null,null,null,null,null,null,null,null,null,""]
[null,null,null,null,null,null,null,null,null,null,null,null,null,null,null,null,null,null,null,null,null,null,null,null,null,null,null,null,null,null,null,""]
[null,null,null,null,null,null,null,null,null,null,null,null,null,null,null,null,null,null,null,null,null,null,null,null,null,null,null,null,null,null,null,""]
[null,null,null,null,null,null,null,null,null,null,null,null,null,null,null,null,null,null,null,null,null,null,null,null,null,null,null,null,null,null,null,""]
[null,null,null,null,null,null,null,null,null,null,null,null,null,null,null,null,null,null,null,null,null,null,null,null,null,null,null,null,null,null,null,""]
[null,null,null,null,null,null,null,null,null,null,null,null,null,null,null,null,null,null,null,null,null,null,null,null,null,null,null,null,null,null,null,""]
[null,null,null,null,null,null,null,null,null,null,null,null,null,null,null,null,null,null,null,null,null,null,null,null,null,null,null,null,null,null,null,""]
[null,null,null,null,null,null,null,null,null,null,null,null,null,null,null,null,null,null,null,null,null,null,null,null,null,null,null,null,null,null,null,""]
[null,null,null,null,null,null,null,null,null,null,null,null,null,null,null,null,null,null,null,null,null,null,null,null,null,null,null,null,null,null,null,""]
[null,null,null,null,null,null,null,null,null,null,null,null,null,null,null,null,null,null,null,null,null,null,null,null,null,null,null,null,null,null,null,""]
[null,null,null,null,null,null,null,null,null,null,null,null,null,null,null,null,null,null,null,null,null,null,null,null,null,null,null,null,null,null,null,""]
[null,null,null,null,null,null,null,null,null,null,null,null,null,null,null,null,null,null,null,null,null,null,null,null,null,null,null,null,null,null,null,""]
[null,null,null,null,null,null,null,null,null,null,null,null,null,null,null,null,null,null,null,null,null,null,null,null,null,null,null,null,null,null,null,""]
[null,null,null,null,null,null,null,null,null,null,null,null,null,null,null,null,null,null,null,null,null,null,null,null,null,null,null,null,null,null,null,""]
[null,null,null,null,null,null,null,null,null,null,null,null,null,null,null,null,null,null,null,null,null,null,null,null,null,null,null,null,null,null,null,""]
[null,null,null,null,null,null,null,null,null,null,null,null,null,null,null,null,null,null,null,null,null,null,null,null,null,null,null,null,null,null,null,""]
[null,null,null,null,null,null,null,null,null,null,null,null,null,null,null,null,null,null,null,null,null,null,null,null,null,null,null,null,null,null,null,""]
[null,null,null,null,null,null,null,null,null,null,null,null,null,null,null,null,null,null,null,null,null,null,null,null,null,null,null,null,null,null,null,""]
[null,null,null,null,null,null,null,null,null,null,null,null,null,null,null,null,null,null,null,null,null,null,null,null,null,null,null,null,null,null,null,""]
[null,null,null,null,null,null,null,null,null,null,null,null,null,null,null,null,null,null,null,null,null,null,null,null,null,null,null,null,null,null,null,""]
[null,null,null,null,null,null,null,null,null,null,null,null,null,null,null,null,null,null,null,null,null,null,null,null,null,null,null,null,null,null,null,""]
[null,null,null,null,null,null,null,null,null,null,null,null,null,null,null,null,null,null,null,null,null,null,null,null,null,null,null,null,null,null,null,""]
[null,null,null,null,null,null,null,null,null,null,null,null,null,null,null,null,null,null,null,null,null,null,null,null,null,null,null,null,null,null,null,""]
[null,null,null,null,null,null,null,null,null,null,null,null,null,null,null,null,null,null,null,null,null,null,null,null,null,null,null,null,null,null,null,""]
[null,null,null,null,null,null,null,null,null,null,null,null,null,null,null,null,null,null,null,null,null,null,null,null,null,null,null,null,null,null,null,""]
[null,null,null,null,null,null,null,null,null,null,null,null,null,null,null,null,null,null,null,null,null,null,null,null,null,null,null,null,null,null,null,""]
[null,null,null,null,null,null,null,null,null,null,null,null,null,null,null,null,null,null,null,null,null,null,null,null,null,null,null,null,null,null,null,""]
[null,null,null,null,null,null,null,null,null,null,null,null,null,null,null,null,null,null,null,null,null,null,null,null,null,null,null,null,null,null,null,""]
[null,null,null,null,null,null,null,null,null,null,null,null,null,null,null,null,null,null,null,null,null,null,null,null,null,null,null,null,null,null,null,""]
[null,null,null,null,null,null,null,null,null,null,null,null,null,null,null,null,null,null,null,null,null,null,null,null,null,null,null,null,null,null,null,""]
[null,null,null,null,null,null,null,null,null,null,null,null,null,null,null,null,null,null,null,null,null,null,null,null,null,null,null,null,null,null,null,""]
[null,null,null,null,null,null,null,null,null,null,null,null,null,null,null,null,null,null,null,null,null,null,null,null,null,null,null,null,null,null,null,""]
[null,null,null,null,null,null,null,null,null,null,null,null,null,null,null,null,null,null,null,null,null,null,null,null,null,null,null,null,null,null,null,""]
[null,null,null,null,null,null,null,null,null,null,null,null,null,null,null,null,null,null,null,null,null,null,null,null,null,null,null,null,null,null,null,""]
[null,null,null,null,null,null,null,null,null,null,null,null,null,null,null,null,null,null,null,null,null,null,null,null,null,null,null,null,null,null,null,""]
[null,null,null,null,null,null,null,null,null,null,null,null,null,null,null,null,null,null,null,null,null,null,null,null,null,null,null,null,null,null,null,""]
[null,null,null,null,null,null,null,null,null,null,null,null,null,null,null,null,null,null,null,null,null,null,null,null,null,null,null,null,null,null,null,{"$f":"IF(AG92=\"\",\"\",VLOOKUP(AG92,$AC$17:$AD$21,2,0))","v":""}]
[null,null,null,null,null,null,null,null,null,null,null,null,null,null,null,null,null,null,null,null,null,null,null,null,null,null,null,null,null,null,null,""]
[null,null,null,null,null,null,null,null,null,null,null,null,null,null,null,null,null,null,null,null,null,null,null,null,null,null,null,null,null,null,null,""]
[null,null,null,null,null,null,null,null,null,null,null,null,null,null,null,null,null,null,null,null,null,null,null,null,null,null,null,null,null,null,null,""]
[null,null,null,null,null,null,null,null,null,null,null,null,null,null,null,null,null,null,null,null,null,null,null,null,null,null,null,null,null,null,null,""]
[null,null,null,null,null,null,null,null,null,null,null,null,null,null,null,null,null,null,null,null,null,null,null,null,null,null,null,null,null,null,null,""]
[null,null,null,null,null,null,null,null,null,null,null,null,null,null,null,null,null,null,null,null,null,null,null,null,null,null,null,null,null,null,null,""]
[null,null,null,null,null,null,null,null,null,null,null,null,null,null,null,null,null,null,null,null,null,null,null,null,null,null,null,null,null,null,null,""]
[null,null,null,null,null,null,null,null,null,null,null,null,null,null,null,null,null,null,null,null,null,null,null,null,null,null,null,null,null,null,null,""]
[null,null,null,null,null,null,null,null,null,null,null,null,null,null,null,null,null,null,null,null,null,null,null,null,null,null,null,null,null,null,null,""]
[null,null,null,null,null,null,null,null,null,null,null,null,null,null,null,null,null,null,null,null,null,null,null,null,null,null,null,null,null,null,null,""]
[null,null,null,null,null,null,null,null,null,null,null,null,null,null,null,null,null,null,null,null,null,null,null,null,null,null,null,null,null,null,null,""]
[null,null,null,null,null,null,null,null,null,null,null,null,null,null,null,null,null,null,null,null,null,null,null,null,null,null,null,null,null,null,null,""]
[null,null,null,null,null,null,null,null,null,null,null,null,null,null,null,null,null,null,null,null,null,null,null,null,null,null,null,null,null,null,null,""]
[null,null,null,null,null,null,null,null,null,null,null,null,null,null,null,null,null,null,null,null,null,null,null,null,null,null,null,null,null,null,null,""]
[null,null,null,null,null,null,null,null,null,null,null,null,null,null,null,null,null,null,null,null,null,null,null,null,null,null,null,null,null,null,null,""]
[null,null,null,null,null,null,null,null,null,null,null,null,null,null,null,null,null,null,null,null,null,null,null,null,null,null,null,null,null,null,null,""]
[null,null,null,null,null,null,null,null,null,null,null,null,null,null,null,null,null,null,null,null,null,null,null,null,null,null,null,null,null,null,null,""]
[null,null,null,null,null,null,null,null,null,null,null,null,null,null,null,null,null,null,null,null,null,null,null,null,null,null,null,null,null,null,null,""]
[null,null,null,null,null,null,null,null,null,null,null,null,null,null,null,null,null,null,null,null,null,null,null,null,null,null,null,null,null,null,null,""]
[null,null,null,null,null,null,null,null,null,null,null,null,null,null,null,null,null,null,null,null,null,null,null,null,null,null,null,null,null,null,null,""]
[null,null,null,null,null,null,null,null,null,null,null,null,null,null,null,null,null,null,null,null,null,null,null,null,null,null,null,null,null,null,null,""]
[null,null,null,null,null,null,null,null,null,null,null,null,null,null,null,null,null,null,null,null,null,null,null,null,null,null,null,null,null,null,null,""]
[null,null,null,null,null,null,null,null,null,null,null,null,null,null,null,null,null,null,null,null,null,null,null,null,null,null,null,null,null,null,null,""]
[null,null,null,null,null,null,null,null,null,null,null,null,null,null,null,null,null,null,null,null,null,null,null,null,null,null,null,null,null,null,null,""]

{"sheet":"TO.V.S","index":5,"n_rows":116,"n_cols":33,"rows_kept":116,"cut":false,"hidden":false,"merged":[[21,28,24,31],[13,3,13,7],[13,12,13,19],[13,21,13,26],[15,3,15,7],[15,12,15,19],[15,21,15,26],[17,3,17,7],[17,12,17,19],[17,21,17,26],[19,0,20,9],[19,10,20,26],[12,3,12,7],[0,0,7,1],[0,2,6,9],[10,17,10,22],[11,12,11,19],[11,21,11,26]]}
["الاتحاد السعودي للفروسية ",null,"برنامج الصافنات لتحكيم قفز الحواجز"]
[]
[]
[]
[]
[]
[]
[]
["التاريخ"]
["اسم البطوله",null,32,null,null,null,{"$f":"COUNTA(A23:AA34)","v":0}]
["رقم الشوط",null,null,null,null,null,null,null,null,null,null,null,null,null,null,null,null,"لجنة التحكيم"]
["اسم الشوط"]
["الارتفاع",null,"الترتيب ","ترتيب الفرسان الأوائل ",null,null,null,null,"الزمن","الأخطاء"]
["الزمن ",null,"الأول",{"$f":"B23","v":0},null,null,null,null,{"$f":"E23","v":0},{"$f":"H23","v":0}]
["المسافه"]
["السرعة",null,"الثاني",{"$f":"B24","v":0},null,null,null,null,{"$f":"E24","v":0},{"$f":"H24","v":0}]
["عدد الفرسان",null,null,null,null,null,null,null,null,null,null,null,null,null,null,null,null,null,null,null,null,null,null,null,null,null,null,null,1,"إمتناع"]
["نوع السباق",null,"الثالث",{"$f":"B25","v":0},null,null,null,null,{"$f":"E25","v":0},{"$f":"H25","v":0},null,null,null,null,null,null,null,null,null,null,null,null,null,null,null,null,null,null,2,"خطأ بالمسار"]
["موقع البطوله",null,null,null,null,null,null,null,null,null,null,null,null,null,null,null,null,null,null,null,null,null,null,null,null,null,null,null,3,"انسحاب"]
[null,null,null,null,null,null,null,null,null,null,"برنامج القفز",null,null,null,null,null,null,null,null,null,null,null,null,null,null,null,null,null,4,"اصابه"]
[null,null,null,null,null,null,null,null,null,null,null,null,null,null,null,null,null,null,null,null,null,null,null,null,null,null,null,null,5,"تجاوز زمن الانتضار"]
["م","اسم الفـــــــــاىس ","رقم الفارس","الجواد","الزمن","أخطاء الحواجز","أخطاء الزمن","مجموع الأخطاء","ملاحظه","مفتاح اساسي",null,null,null,null,null,null,null,null,null,null,null,null,null,null,null,null,null,null,"اسماء الفرسان المتعثرين "]
[]
[null,null,null,null,null,null,null,null,null,null,null,null,null,null,null,null,null,null,null,null,null,null,null,null,null,null,null,null,null,null,null,null,"SPEED"]
[]
[null,null,null,null,null,null,null,null,null,null,null,null,null,null,null,null,null,null,null,null,null,null,null,null,null,null,null,null,"رقم ","اسم الفارس","الجواد","سبب الاستبعاد"]
[null,null,null,null,null,null,null,null,null,null,null,null,null,null,null,null,null,null,null,null,null,null,null,null,null,null,null,null,null,null,null,{"$f":"IF(AG27=\"\",\"\",VLOOKUP(AG27,$AC$17:$AD$21,2,0))","v":""}]
[null,null,null,null,null,null,null,null,null,null,null,null,null,null,null,null,null,null,null,null,null,null,null,null,null,null,null,null,null,null,null,{"$f":"IF(AG28=\"\",\"\",VLOOKUP(AG28,$AC$17:$AD$21,2,0))","v":""}]
[null,null,null,null,null,null,null,null,null,null,null,null,null,null,null,null,null,null,null,null,null,null,null,null,null,null,null,null,null,null,null,""]
[null,null,null,null,null,null,null,null,null,null,null,null,null,null,null,null,null,null,null,null,null,null,null,null,null,null,null,null,null,null,null,""]
[null,null,null,null,null,null,null,null,null,null,null,null,null,null,null,null,null,null,null,null,null,null,null,null,null,null,null,null,null,null,null,""]
[null,null,null,null,null,null,null,null,null,null,null,null,null,null,null,null,null,null,null,null,null,null,null,null,null,null,null,null,null,null,null,""]
[null,null,null,null,null,null,null,null,null,null,null,null,null,null,null,null,null,null,null,null,null,null,null,null,null,null,null,null,null,null,null,""]
[null,null,null,null,null,null,null,null,null,null,null,null,null,null,null,null,null,null,null,null,null,null,null,null,null,null,null,null,null,null,null,""]
[null,null,null,null,null,null,null,null,null,null,null,null,null,null,null,null,null,null,null,null,null,null,null,null,null,null,null,null,null,null,null,""]
[null,null,null,null,null,null,null,null,null,null,null,null,null,null,null,null,null,null,null,null,null,null,null,null,null,null,null,null,null,null,null,""]
[null,null,null,null,null,null,null,null,null,null,null,null,null,null,null,null,null,null,null,null,null,null,null,null,null,null,null,null,null,null,null,""]
[null,null,null,null,null,null,null,null,null,null,null,null,null,null,null,null,null,null,null,null,null,null,null,null,null,null,null,null,null,null,null,""]
[null,null,null,null,null,null,null,null,null,null,null,null,null,null,null,null,null,null,null,null,null,null,null,null,null,null,null,null,null,null,null,""]
[null,null,null,null,null,null,null,null,null,null,null,null,null,null,null,null,null,null,null,null,null,null,null,null,null,null,null,null,null,null,null,""]
[null,null,null,null,null,null,null,null,null,null,null,null,null,null,null,null,null,null,null,null,null,null,null,null,null,null,null,null,null,null,null,""]
[null,null,null,null,null,null,null,null,null,null,null,null,null,null,null,null,null,null,null,null,null,null,null,null,null,null,null,null,null,null,null,""]
[null,null,null,null,null,null,null,null,null,null,null,null,null,null,null,null,null,null,null,null,null,null,null,null,null,null,null,null,null,null,null,""]
[null,null,null,null,null,null,null,null,null,null,null,null,null,null,null,null,null,null,null,null,null,null,null,null,null,null,null,null,null,null,null,""]
[null,null,null,null,null,null,null,null,null,null,null,null,null,null,null,null,null,null,null,null,null,null,null,null,null,null,null,null,null,null,null,""]
[null,null,null,null,null,null,null,null,null,null,null,null,null,null,null,null,null,null,null,null,null,null,null,null,null,null,null,null,null,null,null,""]
[null,null,null,null,null,null,null,null,null,null,null,null,null,null,null,null,null,null,null,null,null,null,null,null,null,null,null,null,null,null,null,""]
[null,null,null,null,null,null,null,null,null,null,null,null,null,null,null,null,null,null,null,null,null,null,null,null,null,null,null,null,null,null,null,""]
[null,null,null,null,null,null,null,null,null,null,null,null,null,null,null,null,null,null,null,null,null,null,null,null,null,null,null,null,null,null,null,""]
[null,null,null,null,null,null,null,null,null,null,null,null,null,null,null,null,null,null,null,null,null,null,null,null,null,null,null,null,null,null,null,""]
[null,null,null,null,null,null,null,null,null,null,null,null,null,null,null,null,null,null,null,null,null,null,null,null,null,null,null,null,null,null,null,""]
[null,null,null,null,null,null,null,null,null,null,null,null,null,null,null,null,null,null,null,null,null,null,null,null,null,null,null,null,null,null,null,""]
[null,null,null,null,null,null,null,null,null,null,null,null,null,null,null,null,null,null,null,null,null,null,null,null,null,null,null,null,null,null,null,""]
[null,null,null,null,null,null,null,null,null,null,null,null,null,null,null,null,null,null,null,null,null,null,null,null,null,null,null,null,null,null,null,""]
[null,null,null,null,null,null,null,null,null,null,null,null,null,null,null,null,null,null,null,null,null,null,null,null,null,null,null,null,null,null,null,""]
[null,null,null,null,null,null,null,null,null,null,null,null,null,null,null,null,null,null,null,null,null,null,null,null,null,null,null,null,null,null,null,""]
[null,null,null,null,null,null,null,null,null,null,null,null,null,null,null,null,null,null,null,null,null,null,null,null,null,null,null,null,null,null,null,""]
[null,null,null,null,null,null,null,null,null,null,null,null,null,null,null,null,null,null,null,null,null,null,null,null,null,null,null,null,null,null,null,""]
[null,null,null,null,null,null,null,null,null,null,null,null,null,null,null,null,null,null,null,null,null,null,null,null,null,null,null,null,null,null,null,""]
[null,null,null,null,null,null,null,null,null,null,null,null,null,null,null,null,null,null,null,null,null,null,null,null,null,null,null,null,null,null,null,""]
[null,null,null,null,null,null,null,null,null,null,null,null,null,null,null,null,null,null,null,null,null,null,null,null,null,null,null,null,null,null,null,""]
[null,null,null,null,null,null,null,null,null,null,null,null,null,null,null,null,null,null,null,null,null,null,null,null,null,null,null,null,null,null,null,""]
[null,null,null,null,null,null,null,null,null,null,null,null,null,null,null,null,null,null,null,null,null,null,null,null,null,null,null,null,null,null,null,""]
[null,null,null,null,null,null,null,null,null,null,null,null,null,null,null,null,null,null,null,null,null,null,null,null,null,null,null,null,null,null,null,""]
[null,null,null,null,null,null,null,null,null,null,null,null,null,null,null,null,null,null,null,null,null,null,null,null,null,null,null,null,null,null,null,""]
[null,null,null,null,null,null,null,null,null,null,null,null,null,null,null,null,null,null,null,null,null,null,null,null,null,null,null,null,null,null,null,""]
[null,null,null,null,null,null,null,null,null,null,null,null,null,null,null,null,null,null,null,null,null,null,null,null,null,null,null,null,null,null,null,""]
[null,null,null,null,null,null,null,null,null,null,null,null,null,null,null,null,null,null,null,null,null,null,null,null,null,null,null,null,null,null,null,""]
[null,null,null,null,null,null,null,null,null,null,null,null,null,null,null,null,null,null,null,null,null,null,null,null,null,null,null,null,null,null,null,""]
[null,null,null,null,null,null,null,null,null,null,null,null,null,null,null,null,null,null,null,null,null,null,null,null,null,null,null,null,null,null,null,""]
[null,null,null,null,null,null,null,null,null,null,null,null,null,null,null,null,null,null,null,null,null,null,null,null,null,null,null,null,null,null,null,""]
[null,null,null,null,null,null,null,null,null,null,null,null,null,null,null,null,null,null,null,null,null,null,null,null,null,null,null,null,null,null,null,""]
[null,null,null,null,null,null,null,null,null,null,null,null,null,null,null,null,null,null,null,null,null,null,null,null,null,null,null,null,null,null,null,""]
[null,null,null,null,null,null,null,null,null,null,null,null,null,null,null,null,null,null,null,null,null,null,null,null,null,null,null,null,null,null,null,""]
[null,null,null,null,null,null,null,null,null,null,null,null,null,null,null,null,null,null,null,null,null,null,null,null,null,null,null,null,null,null,null,""]
[null,null,null,null,null,null,null,null,null,null,null,null,null,null,null,null,null,null,null,null,null,null,null,null,null,null,null,null,null,null,null,""]
[null,null,null,null,null,null,null,null,null,null,null,null,null,null,null,null,null,null,null,null,null,null,null,null,null,null,null,null,null,null,null,""]
[null,null,null,null,null,null,null,null,null,null,null,null,null,null,null,null,null,null,null,null,null,null,null,null,null,null,null,null,null,null,null,""]
[null,null,null,null,null,null,null,null,null,null,null,null,null,null,null,null,null,null,null,null,null,null,null,null,null,null,null,null,null,null,null,""]
[null,null,null,null,null,null,null,null,null,null,null,null,null,null,null,null,null,null,null,null,null,null,null,null,null,null,null,null,null,null,null,""]
[null,null,null,null,null,null,null,null,null,null,null,null,null,null,null,null,null,null,null,null,null,null,null,null,null,null,null,null,null,null,null,""]
[null,null,null,null,null,null,null,null,null,null,null,null,null,null,null,null,null,null,null,null,null,null,null,null,null,null,null,null,null,null,null,""]
[null,null,null,null,null,null,null,null,null,null,null,null,null,null,null,null,null,null,null,null,null,null,null,null,null,null,null,null,null,null,null,""]
[null,null,null,null,null,null,null,null,null,null,null,null,null,null,null,null,null,null,null,null,null,null,null,null,null,null,null,null,null,null,null,""]
[null,null,null,null,null,null,null,null,null,null,null,null,null,null,null,null,null,null,null,null,null,null,null,null,null,null,null,null,null,null,null,""]
[null,null,null,null,null,null,null,null,null,null,null,null,null,null,null,null,null,null,null,null,null,null,null,null,null,null,null,null,null,null,null,""]
[null,null,null,null,null,null,null,null,null,null,null,null,null,null,null,null,null,null,null,null,null,null,null,null,null,null,null,null,null,null,null,""]
[null,null,null,null,null,null,null,null,null,null,null,null,null,null,null,null,null,null,null,null,null,null,null,null,null,null,null,null,null,null,null,""]
[null,null,null,null,null,null,null,null,null,null,null,null,null,null,null,null,null,null,null,null,null,null,null,null,null,null,null,null,null,null,null,""]
[null,null,null,null,null,null,null,null,null,null,null,null,null,null,null,null,null,null,null,null,null,null,null,null,null,null,null,null,null,null,null,""]
[null,null,null,null,null,null,null,null,null,null,null,null,null,null,null,null,null,null,null,null,null,null,null,null,null,null,null,null,null,null,null,""]
[null,null,null,null,null,null,null,null,null,null,null,null,null,null,null,null,null,null,null,null,null,null,null,null,null,null,null,null,null,null,null,{"$f":"IF(AG92=\"\",\"\",VLOOKUP(AG92,$AC$17:$AD$21,2,0))","v":""}]
[null,null,null,null,null,null,null,null,null,null,null,null,null,null,null,null,null,null,null,null,null,null,null,null,null,null,null,null,null,null,null,""]
[null,null,null,null,null,null,null,null,null,null,null,null,null,null,null,null,null,null,null,null,null,null,null,null,null,null,null,null,null,null,null,""]
[null,null,null,null,null,null,null,null,null,null,null,null,null,null,null,null,null,null,null,null,null,null,null,null,null,null,null,null,null,null,null,""]
[null,null,null,null,null,null,null,null,null,null,null,null,null,null,null,null,null,null,null,null,null,null,null,null,null,null,null,null,null,null,null,""]
[null,null,null,null,null,null,null,null,null,null,null,null,null,null,null,null,null,null,null,null,null,null,null,null,null,null,null,null,null,null,null,""]
[null,null,null,null,null,null,null,null,null,null,null,null,null,null,null,null,null,null,null,null,null,null,null,null,null,null,null,null,null,null,null,""]
[null,null,null,null,null,null,null,null,null,null,null,null,null,null,null,null,null,null,null,null,null,null,null,null,null,null,null,null,null,null,null,""]
[null,null,null,null,null,null,null,null,null,null,null,null,null,null,null,null,null,null,null,null,null,null,null,null,null,null,null,null,null,null,null,""]
[null,null,null,null,null,null,null,null,null,null,null,null,null,null,null,null,null,null,null,null,null,null,null,null,null,null,null,null,null,null,null,""]
[null,null,null,null,null,null,null,null,null,null,null,null,null,null,null,null,null,null,null,null,null,null,null,null,null,null,null,null,null,null,null,""]
[null,null,null,null,null,null,null,null,null,null,null,null,null,null,null,null,null,null,null,null,null,null,null,null,null,null,null,null,null,null,null,""]
[null,null,null,null,null,null,null,null,null,null,null,null,null,null,null,null,null,null,null,null,null,null,null,null,null,null,null,null,null,null,null,""]
[null,null,null,null,null,null,null,null,null,null,null,null,null,null,null,null,null,null,null,null,null,null,null,null,null,null,null,null,null,null,null,""]
[null,null,null,null,null,null,null,null,null,null,null,null,null,null,null,null,null,null,null,null,null,null,null,null,null,null,null,null,null,null,null,""]
[null,null,null,null,null,null,null,null,null,null,null,null,null,null,null,null,null,null,null,null,null,null,null,null,null,null,null,null,null,null,null,""]
[null,null,null,null,null,null,null,null,null,null,null,null,null,null,null,null,null,null,null,null,null,null,null,null,null,null,null,null,null,null,null,""]
[null,null,null,null,null,null,null,null,null,null,null,null,null,null,null,null,null,null,null,null,null,null,null,null,null,null,null,null,null,null,null,""]
[null,null,null,null,null,null,null,null,null,null,null,null,null,null,null,null,null,null,null,null,null,null,null,null,null,null,null,null,null,null,null,""]
[null,null,null,null,null,null,null,null,null,null,null,null,null,null,null,null,null,null,null,null,null,null,null,null,null,null,null,null,null,null,null,""]
[null,null,null,null,null,null,null,null,null,null,null,null,null,null,null,null,null,null,null,null,null,null,null,null,null,null,null,null,null,null,null,""]
[null,null,null,null,null,null,null,null,null,null,null,null,null,null,null,null,null,null,null,null,null,null,null,null,null,null,null,null,null,null,null,""]
[null,null,null,null,null,null,null,null,null,null,null,null,null,null,null,null,null,null,null,null,null,null,null,null,null,null,null,null,null,null,null,""]
[null,null,null,null,null,null,null,null,null,null,null,null,null,null,null,null,null,null,null,null,null,null,null,null,null,null,null,null,null,null,null,""]
[null,null,null,null,null,null,null,null,null,null,null,null,null,null,null,null,null,null,null,null,null,null,null,null,null,null,null,null,null,null,null,""]

{"sheet":"T.T","index":6,"n_rows":116,"n_cols":33,"rows_kept":116,"cut":false,"hidden":false,"merged":[[21,28,24,31],[13,3,13,7],[13,12,13,19],[13,21,13,26],[15,3,15,7],[15,12,15,19],[15,21,15,26],[17,3,17,7],[17,12,17,19],[17,21,17,26],[19,0,20,9],[19,10,20,26],[12,3,12,7],[0,0,7,1],[0,2,6,9],[10,17,10,22],[11,12,11,19],[11,21,11,26]]}
["الاتحاد السعودي للفروسية ",null,"برنامج الصافنات لتحكيم قفز الحواجز"]
[]
[]
[]
[]
[]
[]
[]
["التاريخ"]
["اسم البطوله",null,null,null,null,null,{"$f":"COUNTA(A23:AA34)","v":0}]
["رقم الشوط",null,null,null,null,null,null,null,null,null,null,null,null,null,null,null,null,"لجنة التحكيم"]
["اسم الشوط"]
["الارتفاع",null,"الترتيب ","ترتيب الفرسان الأوائل ",null,null,null,null,"الزمن","الأخطاء"]
["الزمن ",null,"الأول",{"$f":"B23","v":0},null,null,null,null,{"$f":"E23","v":0},{"$f":"H23","v":0}]
["المسافه"]
["السرعة",null,"الثاني",{"$f":"B24","v":0},null,null,null,null,{"$f":"E24","v":0},{"$f":"H24","v":0}]
["عدد الفرسان",null,null,null,null,null,null,null,null,null,null,null,null,null,null,null,null,null,null,null,null,null,null,null,null,null,null,null,1,"إمتناع"]
["نوع السباق",null,"الثالث",{"$f":"B25","v":0},null,null,null,null,{"$f":"E25","v":0},{"$f":"H25","v":0},null,null,null,null,null,null,null,null,null,null,null,null,null,null,null,null,null,null,2,"خطأ بالمسار"]
["موقع البطوله",null,null,null,null,null,null,null,null,null,null,null,null,null,null,null,null,null,null,null,null,null,null,null,null,null,null,null,3,"انسحاب"]
[null,null,null,null,null,null,null,null,null,null,"برنامج القفز",null,null,null,null,null,null,null,null,null,null,null,null,null,null,null,null,null,4,"اصابه"]
[null,null,null,null,null,null,null,null,null,null,null,null,null,null,null,null,null,null,null,null,null,null,null,null,null,null,null,null,5,"تجاوز زمن الانتضار"]
["م","اسم الفـــــــــاىس ","رقم الفارس","الجواد","زمن الفارس","أخطاء الحواجز","الزمن المحدد",null,"فارق الزمن","مفتاح اساسي",null,null,null,null,null,null,null,null,null,null,null,null,null,null,null,null,null,null,"اسماء الفرسان المتعثرين "]
[]
[null,null,null,null,null,null,null,null,null,null,null,null,null,null,null,null,null,null,null,null,null,null,null,null,null,null,null,null,null,null,null,null,"SPEED"]
[]
[null,null,null,null,null,null,null,null,null,null,null,null,null,null,null,null,null,null,null,null,null,null,null,null,null,null,null,null,"رقم ","اسم الفارس","الجواد","سبب الاستبعاد"]
[null,null,null,null,null,null,null,null,null,null,null,null,null,null,null,null,null,null,null,null,null,null,null,null,null,null,null,null,null,null,null,{"$f":"IF(AG27=\"\",\"\",VLOOKUP(AG27,$AC$17:$AD$21,2,0))","v":""}]
[null,null,null,null,null,null,null,null,null,null,null,null,null,null,null,null,null,null,null,null,null,null,null,null,null,null,null,null,null,null,null,{"$f":"IF(AG28=\"\",\"\",VLOOKUP(AG28,$AC$17:$AD$21,2,0))","v":""}]
[null,null,null,null,null,null,null,null,null,null,null,null,null,null,null,null,null,null,null,null,null,null,null,null,null,null,null,null,null,null,null,""]
[null,null,null,null,null,null,null,null,null,null,null,null,null,null,null,null,null,null,null,null,null,null,null,null,null,null,null,null,null,null,null,""]
[null,null,null,null,null,null,null,null,null,null,null,null,null,null,null,null,null,null,null,null,null,null,null,null,null,null,null,null,null,null,null,""]
[null,null,null,null,null,null,null,null,null,null,null,null,null,null,null,null,null,null,null,null,null,null,null,null,null,null,null,null,null,null,null,""]
[null,null,null,null,null,null,null,null,null,null,null,null,null,null,null,null,null,null,null,null,null,null,null,null,null,null,null,null,null,null,null,""]
[null,null,null,null,null,null,null,null,null,null,null,null,null,null,null,null,null,null,null,null,null,null,null,null,null,null,null,null,null,null,null,""]
[null,null,null,null,null,null,null,null,null,null,null,null,null,null,null,null,null,null,null,null,null,null,null,null,null,null,null,null,null,null,null,""]
[null,null,null,null,null,null,null,null,null,null,null,null,null,null,null,null,null,null,null,null,null,null,null,null,null,null,null,null,null,null,null,""]
[null,null,null,null,null,null,null,null,null,null,null,null,null,null,null,null,null,null,null,null,null,null,null,null,null,null,null,null,null,null,null,""]
[null,null,null,null,null,null,null,null,null,null,null,null,null,null,null,null,null,null,null,null,null,null,null,null,null,null,null,null,null,null,null,""]
[null,null,null,null,null,null,null,null,null,null,null,null,null,null,null,null,null,null,null,null,null,null,null,null,null,null,null,null,null,null,null,""]
[null,null,null,null,null,null,null,null,null,null,null,null,null,null,null,null,null,null,null,null,null,null,null,null,null,null,null,null,null,null,null,""]
[null,null,null,null,null,null,null,null,null,null,null,null,null,null,null,null,null,null,null,null,null,null,null,null,null,null,null,null,null,null,null,""]
[null,null,null,null,null,null,null,null,null,null,null,null,null,null,null,null,null,null,null,null,null,null,null,null,null,null,null,null,null,null,null,""]
[null,null,null,null,null,null,null,null,null,null,null,null,null,null,null,null,null,null,null,null,null,null,null,null,null,null,null,null,null,null,null,""]
[null,null,null,null,null,null,null,null,null,null,null,null,null,null,null,null,null,null,null,null,null,null,null,null,null,null,null,null,null,null,null,""]
[null,null,null,null,null,null,null,null,null,null,null,null,null,null,null,null,null,null,null,null,null,null,null,null,null,null,null,null,null,null,null,""]
[null,null,null,null,null,null,null,null,null,null,null,null,null,null,null,null,null,null,null,null,null,null,null,null,null,null,null,null,null,null,null,""]
[null,null,null,null,null,null,null,null,null,null,null,null,null,null,null,null,null,null,null,null,null,null,null,null,null,null,null,null,null,null,null,""]
[null,null,null,null,null,null,null,null,null,null,null,null,null,null,null,null,null,null,null,null,null,null,null,null,null,null,null,null,null,null,null,""]
[null,null,null,null,null,null,null,null,null,null,null,null,null,null,null,null,null,null,null,null,null,null,null,null,null,null,null,null,null,null,null,""]
[null,null,null,null,null,null,null,null,null,null,null,null,null,null,null,null,null,null,null,null,null,null,null,null,null,null,null,null,null,null,null,""]
[null,null,null,null,null,null,null,null,null,null,null,null,null,null,null,null,null,null,null,null,null,null,null,null,null,null,null,null,null,null,null,""]
[null,null,null,null,null,null,null,null,null,null,null,null,null,null,null,null,null,null,null,null,null,null,null,null,null,null,null,null,null,null,null,""]
[null,null,null,null,null,null,null,null,null,null,null,null,null,null,null,null,null,null,null,null,null,null,null,null,null,null,null,null,null,null,null,""]
[null,null,null,null,null,null,null,null,null,null,null,null,null,null,null,null,null,null,null,null,null,null,null,null,null,null,null,null,null,null,null,""]
[null,null,null,null,null,null,null,null,null,null,null,null,null,null,null,null,null,null,null,null,null,null,null,null,null,null,null,null,null,null,null,""]
[null,null,null,null,null,null,null,null,null,null,null,null,null,null,null,null,null,null,null,null,null,null,null,null,null,null,null,null,null,null,null,""]
[null,null,null,null,null,null,null,null,null,null,null,null,null,null,null,null,null,null,null,null,null,null,null,null,null,null,null,null,null,null,null,""]
[null,null,null,null,null,null,null,null,null,null,null,null,null,null,null,null,null,null,null,null,null,null,null,null,null,null,null,null,null,null,null,""]
[null,null,null,null,null,null,null,null,null,null,null,null,null,null,null,null,null,null,null,null,null,null,null,null,null,null,null,null,null,null,null,""]
[null,null,null,null,null,null,null,null,null,null,null,null,null,null,null,null,null,null,null,null,null,null,null,null,null,null,null,null,null,null,null,""]
[null,null,null,null,null,null,null,null,null,null,null,null,null,null,null,null,null,null,null,null,null,null,null,null,null,null,null,null,null,null,null,""]
[null,null,null,null,null,null,null,null,null,null,null,null,null,null,null,null,null,null,null,null,null,null,null,null,null,null,null,null,null,null,null,""]
[null,null,null,null,null,null,null,null,null,null,null,null,null,null,null,null,null,null,null,null,null,null,null,null,null,null,null,null,null,null,null,""]
[null,null,null,null,null,null,null,null,null,null,null,null,null,null,null,null,null,null,null,null,null,null,null,null,null,null,null,null,null,null,null,""]
[null,null,null,null,null,null,null,null,null,null,null,null,null,null,null,null,null,null,null,null,null,null,null,null,null,null,null,null,null,null,null,""]
[null,null,null,null,null,null,null,null,null,null,null,null,null,null,null,null,null,null,null,null,null,null,null,null,null,null,null,null,null,null,null,""]
[null,null,null,null,null,null,null,null,null,null,null,null,null,null,null,null,null,null,null,null,null,null,null,null,null,null,null,null,null,null,null,""]
[null,null,null,null,null,null,null,null,null,null,null,null,null,null,null,null,null,null,null,null,null,null,null,null,null,null,null,null,null,null,null,""]
[null,null,null,null,null,null,null,null,null,null,null,null,null,null,null,null,null,null,null,null,null,null,null,null,null,null,null,null,null,null,null,""]
[null,null,null,null,null,null,null,null,null,null,null,null,null,null,null,null,null,null,null,null,null,null,null,null,null,null,null,null,null,null,null,""]
[null,null,null,null,null,null,null,null,null,null,null,null,null,null,null,null,null,null,null,null,null,null,null,null,null,null,null,null,null,null,null,""]
[null,null,null,null,null,null,null,null,null,null,null,null,null,null,null,null,null,null,null,null,null,null,null,null,null,null,null,null,null,null,null,""]
[null,null,null,null,null,null,null,null,null,null,null,null,null,null,null,null,null,null,null,null,null,null,null,null,null,null,null,null,null,null,null,""]
[null,null,null,null,null,null,null,null,null,null,null,null,null,null,null,null,null,null,null,null,null,null,null,null,null,null,null,null,null,null,null,""]
[null,null,null,null,null,null,null,null,null,null,null,null,null,null,null,null,null,null,null,null,null,null,null,null,null,null,null,null,null,null,null,""]
[null,null,null,null,null,null,null,null,null,null,null,null,null,null,null,null,null,null,null,null,null,null,null,null,null,null,null,null,null,null,null,""]
[null,null,null,null,null,null,null,null,null,null,null,null,null,null,null,null,null,null,null,null,null,null,null,null,null,null,null,null,null,null,null,""]
[null,null,null,null,null,null,null,null,null,null,null,null,null,null,null,null,null,null,null,null,null,null,null,null,null,null,null,null,null,null,null,""]
[null,null,null,null,null,null,null,null,null,null,null,null,null,null,null,null,null,null,null,null,null,null,null,null,null,null,null,null,null,null,null,""]
[null,null,null,null,null,null,null,null,null,null,null,null,null,null,null,null,null,null,null,null,null,null,null,null,null,null,null,null,null,null,null,""]
[null,null,null,null,null,null,null,null,null,null,null,null,null,null,null,null,null,null,null,null,null,null,null,null,null,null,null,null,null,null,null,""]
[null,null,null,null,null,null,null,null,null,null,null,null,null,null,null,null,null,null,null,null,null,null,null,null,null,null,null,null,null,null,null,""]
[null,null,null,null,null,null,null,null,null,null,null,null,null,null,null,null,null,null,null,null,null,null,null,null,null,null,null,null,null,null,null,""]
[null,null,null,null,null,null,null,null,null,null,null,null,null,null,null,null,null,null,null,null,null,null,null,null,null,null,null,null,null,null,null,""]
[null,null,null,null,null,null,null,null,null,null,null,null,null,null,null,null,null,null,null,null,null,null,null,null,null,null,null,null,null,null,null,""]
[null,null,null,null,null,null,null,null,null,null,null,null,null,null,null,null,null,null,null,null,null,null,null,null,null,null,null,null,null,null,null,""]
[null,null,null,null,null,null,null,null,null,null,null,null,null,null,null,null,null,null,null,null,null,null,null,null,null,null,null,null,null,null,null,""]
[null,null,null,null,null,null,null,null,null,null,null,null,null,null,null,null,null,null,null,null,null,null,null,null,null,null,null,null,null,null,null,""]
[null,null,null,null,null,null,null,null,null,null,null,null,null,null,null,null,null,null,null,null,null,null,null,null,null,null,null,null,null,null,null,""]
[null,null,null,null,null,null,null,null,null,null,null,null,null,null,null,null,null,null,null,null,null,null,null,null,null,null,null,null,null,null,null,""]
[null,null,null,null,null,null,null,null,null,null,null,null,null,null,null,null,null,null,null,null,null,null,null,null,null,null,null,null,null,null,null,""]
[null,null,null,null,null,null,null,null,null,null,null,null,null,null,null,null,null,null,null,null,null,null,null,null,null,null,null,null,null,null,null,{"$f":"IF(AG92=\"\",\"\",VLOOKUP(AG92,$AC$17:$AD$21,2,0))","v":""}]
[null,null,null,null,null,null,null,null,null,null,null,null,null,null,null,null,null,null,null,null,null,null,null,null,null,null,null,null,null,null,null,""]
[null,null,null,null,null,null,null,null,null,null,null,null,null,null,null,null,null,null,null,null,null,null,null,null,null,null,null,null,null,null,null,""]
[null,null,null,null,null,null,null,null,null,null,null,null,null,null,null,null,null,null,null,null,null,null,null,null,null,null,null,null,null,null,null,""]
[null,null,null,null,null,null,null,null,null,null,null,null,null,null,null,null,null,null,null,null,null,null,null,null,null,null,null,null,null,null,null,""]
[null,null,null,null,null,null,null,null,null,null,null,null,null,null,null,null,null,null,null,null,null,null,null,null,null,null,null,null,null,null,null,""]
[null,null,null,null,null,null,null,null,null,null,null,null,null,null,null,null,null,null,null,null,null,null,null,null,null,null,null,null,null,null,null,""]
[null,null,null,null,null,null,null,null,null,null,null,null,null,null,null,null,null,null,null,null,null,null,null,null,null,null,null,null,null,null,null,""]
[null,null,null,null,null,null,null,null,null,null,null,null,null,null,null,null,null,null,null,null,null,null,null,null,null,null,null,null,null,null,null,""]
[null,null,null,null,null,null,null,null,null,null,null,null,null,null,null,null,null,null,null,null,null,null,null,null,null,null,null,null,null,null,null,""]
[null,null,null,null,null,null,null,null,null,null,null,null,null,null,null,null,null,null,null,null,null,null,null,null,null,null,null,null,null,null,null,""]
[null,null,null,null,null,null,null,null,null,null,null,null,null,null,null,null,null,null,null,null,null,null,null,null,null,null,null,null,null,null,null,""]
[null,null,null,null,null,null,null,null,null,null,null,null,null,null,null,null,null,null,null,null,null,null,null,null,null,null,null,null,null,null,null,""]
[null,null,null,null,null,null,null,null,null,null,null,null,null,null,null,null,null,null,null,null,null,null,null,null,null,null,null,null,null,null,null,""]
[null,null,null,null,null,null,null,null,null,null,null,null,null,null,null,null,null,null,null,null,null,null,null,null,null,null,null,null,null,null,null,""]
[null,null,null,null,null,null,null,null,null,null,null,null,null,null,null,null,null,null,null,null,null,null,null,null,null,null,null,null,null,null,null,""]
[null,null,null,null,null,null,null,null,null,null,null,null,null,null,null,null,null,null,null,null,null,null,null,null,null,null,null,null,null,null,null,""]
[null,null,null,null,null,null,null,null,null,null,null,null,null,null,null,null,null,null,null,null,null,null,null,null,null,null,null,null,null,null,null,""]
[null,null,null,null,null,null,null,null,null,null,null,null,null,null,null,null,null,null,null,null,null,null,null,null,null,null,null,null,null,null,null,""]
[null,null,null,null,null,null,null,null,null,null,null,null,null,null,null,null,null,null,null,null,null,null,null,null,null,null,null,null,null,null,null,""]
[null,null,null,null,null,null,null,null,null,null,null,null,null,null,null,null,null,null,null,null,null,null,null,null,null,null,null,null,null,null,null,""]
[null,null,null,null,null,null,null,null,null,null,null,null,null,null,null,null,null,null,null,null,null,null,null,null,null,null,null,null,null,null,null,""]
[null,null,null,null,null,null,null,null,null,null,null,null,null,null,null,null,null,null,null,null,null,null,null,null,null,null,null,null,null,null,null,""]
[null,null,null,null,null,null,null,null,null,null,null,null,null,null,null,null,null,null,null,null,null,null,null,null,null,null,null,null,null,null,null,""]
[null,null,null,null,null,null,null,null,null,null,null,null,null,null,null,null,null,null,null,null,null,null,null,null,null,null,null,null,null,null,null,""]

{"sheet":"PRINT","index":7,"n_rows":23,"n_cols":5,"rows_kept":23,"cut":false,"hidden":false,"merged":[[1,0,4,0],[11,1,12,3],[1,2,1,4],[3,2,3,4],[5,2,5,4],[2,2,2,4],[10,2,10,4],[7,2,7,4],[9,2,9,4],[8,2,8,4],[6,2,6,4],[4,2,4,4],[1,1,4,1]]}
[]
[null,null,"لجنة التحكيم والتصميم"]
[null,null,"عبد العزيز حكمي "]
[null,null,"محمد نجيب حكمي "]
[null,null,"ولي عجيبي"]
["التاريخ",null,"خالد سالمين"]
["اسم البطوله","بطولة الصافنات ","علي عريشي"]
["اسم الشوط","العالي ( جوكر)","عبد الرحمن سهلي "]
["نوع السباق  ","joker"]
["الموقع","نادي الصافنات","علي عجيبي"]
[]
[null,"أسماء الفائزون "]
[]
["م","اسم الفـــــــــارس ","الجواد","الزمن","النقاط"]
[1,"أحمد ضعافي كلبي ","الجارح ",37.970999999999997,44]
[2,"أحمد زعله","دايموند",42.67,44]
[3,"محمد أحمد الأشقر ","كتن ",49.552999999999997,44]
[4,"جمال رضوان","سدرك",53.005000000000003,44]
[5,"خالد الضمدي","جيفاقو",39.640999999999998,12]
[6,"محمد عقيلي","دونا",45.898000000000003,12]
[7,"عزام البواب","جايد",53.975999999999999,6]
[8,"أحمد غازي فقيه","-",43.591999999999999,5]
[9,"إبراهيم جوخبي ","عزام ",54.642000000000003,-6]

{"sheet":"diff","index":8,"n_rows":116,"n_cols":33,"rows_kept":116,"cut":false,"hidden":false,"merged":[[21,28,24,31],[13,3,13,7],[13,12,13,19],[13,21,13,26],[15,3,15,7],[15,12,15,19],[15,21,15,26],[17,3,17,7],[17,12,17,19],[17,21,17,26],[19,0,20,9],[19,10,20,26],[12,3,12,7],[0,0,7,1],[0,2,6,9],[10,17,10,22],[11,12,11,19],[11,21,11,26]]}
["الاتحاد السعودي للفروسية ",null,"برنامج الصافنات لتحكيم قفز الحواجز"]
[]
[]
[]
[]
[]
[]
[]
["التاريخ"]
["اسم البطوله",null,null,null,null,null,{"$f":"COUNTA(A23:AA34)","v":0}]
["رقم الشوط",null,null,null,null,null,null,null,null,null,null,null,null,null,null,null,null,"لجنة التحكيم"]
["اسم الشوط"]
["الارتفاع",null,"الترتيب ","ترتيب الفرسان الأوائل ",null,null,null,null,"الزمن","الأخطاء"]
["الزمن ",null,"الأول",{"$f":"B23","v":0},null,null,null,null,{"$f":"E23","v":0},{"$f":"H23","v":0}]
["المسافه"]
["السرعة",null,"الثاني",{"$f":"B24","v":0},null,null,null,null,{"$f":"E24","v":0},{"$f":"H24","v":0}]
["عدد الفرسان",null,null,null,null,null,null,null,null,null,null,null,null,null,null,null,null,null,null,null,null,null,null,null,null,null,null,null,1,"إمتناع"]
["نوع السباق",null,"الثالث",{"$f":"B25","v":0},null,null,null,null,{"$f":"E25","v":0},{"$f":"H25","v":0},null,null,null,null,null,null,null,null,null,null,null,null,null,null,null,null,null,null,2,"خطأ بالمسار"]
["موقع البطوله",null,null,null,null,null,null,null,null,null,null,null,null,null,null,null,null,null,null,null,null,null,null,null,null,null,null,null,3,"انسحاب"]
[null,null,null,null,null,null,null,null,null,null,"برنامج القفز",null,null,null,null,null,null,null,null,null,null,null,null,null,null,null,null,null,4,"اصابه"]
[null,null,null,null,null,null,null,null,null,null,null,null,null,null,null,null,null,null,null,null,null,null,null,null,null,null,null,null,5,"تجاوز زمن الانتضار"]
["م","اسم الفـــــــــاىس ","رقم الفارس","الجواد","الزمن","أخطاء الحواجز","أخطاء الزمن","مجموع الأخطاء","الأخطاء المرحله","مفتاح اساسي",1,2,3,4,5,6,7,8,9,10,11," "," "," "," "," "," ",null,"اسماء الفرسان المتعثرين "]
[]
[null,null,null,null,null,null,null,null,null,null,null,null,null,null,null,null,null,null,null,null,null,null,null,null,null,null,null,null,null,null,null,null,"SPEED"]
[]
[null,null,null,null,null,null,null,null,null,null,null,null,null,null,null,null,null,null,null,null,null,null,null,null,null,null,null,null,"رقم ","اسم الفارس","الجواد","سبب الاستبعاد"]
[null,null,null,null,null,null,null,null,null,null,null,null,null,null,null,null,null,null,null,null,null,null,null,null,null,null,null,null,null,null,null,{"$f":"IF(AG27=\"\",\"\",VLOOKUP(AG27,$AC$17:$AD$21,2,0))","v":""}]
[null,null,null,null,null,null,null,null,null,null,null,null,null,null,null,null,null,null,null,null,null,null,null,null,null,null,null,null,null,null,null,{"$f":"IF(AG28=\"\",\"\",VLOOKUP(AG28,$AC$17:$AD$21,2,0))","v":""}]
[null,null,null,null,null,null,null,null,null,null,null,null,null,null,null,null,null,null,null,null,null,null,null,null,null,null,null,null,null,null,null,""]
[null,null,null,null,null,null,null,null,null,null,null,null,null,null,null,null,null,null,null,null,null,null,null,null,null,null,null,null,null,null,null,""]
[null,null,null,null,null,null,null,null,null,null,null,null,null,null,null,null,null,null,null,null,null,null,null,null,null,null,null,null,null,null,null,""]
[null,null,null,null,null,null,null,null,null,null,null,null,null,null,null,null,null,null,null,null,null,null,null,null,null,null,null,null,null,null,null,""]
[null,null,null,null,null,null,null,null,null,null,null,null,null,null,null,null,null,null,null,null,null,null,null,null,null,null,null,null,null,null,null,""]
[null,null,null,null,null,null,null,null,null,null,null,null,null,null,null,null,null,null,null,null,null,null,null,null,null,null,null,null,null,null,null,""]
[null,null,null,null,null,null,null,null,null,null,null,null,null,null,null,null,null,null,null,null,null,null,null,null,null,null,null,null,null,null,null,""]
[null,null,null,null,null,null,null,null,null,null,null,null,null,null,null,null,null,null,null,null,null,null,null,null,null,null,null,null,null,null,null,""]
[null,null,null,null,null,null,null,null,null,null,null,null,null,null,null,null,null,null,null,null,null,null,null,null,null,null,null,null,null,null,null,""]
[null,null,null,null,null,null,null,null,null,null,null,null,null,null,null,null,null,null,null,null,null,null,null,null,null,null,null,null,null,null,null,""]
[null,null,null,null,null,null,null,null,null,null,null,null,null,null,null,null,null,null,null,null,null,null,null,null,null,null,null,null,null,null,null,""]
[null,null,null,null,null,null,null,null,null,null,null,null,null,null,null,null,null,null,null,null,null,null,null,null,null,null,null,null,null,null,null,""]
[null,null,null,null,null,null,null,null,null,null,null,null,null,null,null,null,null,null,null,null,null,null,null,null,null,null,null,null,null,null,null,""]
[null,null,null,null,null,null,null,null,null,null,null,null,null,null,null,null,null,null,null,null,null,null,null,null,null,null,null,null,null,null,null,""]
[null,null,null,null,null,null,null,null,null,null,null,null,null,null,null,null,null,null,null,null,null,null,null,null,null,null,null,null,null,null,null,""]
[null,null,null,null,null,null,null,null,null,null,null,null,null,null,null,null,null,null,null,null,null,null,null,null,null,null,null,null,null,null,null,""]
[null,null,null,null,null,null,null,null,null,null,null,null,null,null,null,null,null,null,null,null,null,null,null,null,null,null,null,null,null,null,null,""]
[null,null,null,null,null,null,null,null,null,null,null,null,null,null,null,null,null,null,null,null,null,null,null,null,null,null,null,null,null,null,null,""]
[null,null,null,null,null,null,null,null,null,null,null,null,null,null,null,null,null,null,null,null,null,null,null,null,null,null,null,null,null,null,null,""]
[null,null,null,null,null,null,null,null,null,null,null,null,null,null,null,null,null,null,null,null,null,null,null,null,null,null,null,null,null,null,null,""]
[null,null,null,null,null,null,null,null,null,null,null,null,null,null,null,null,null,null,null,null,null,null,null,null,null,null,null,null,null,null,null,""]
[null,null,null,null,null,null,null,null,null,null,null,null,null,null,null,null,null,null,null,null,null,null,null,null,null,null,null,null,null,null,null,""]
[null,null,null,null,null,null,null,null,null,null,null,null,null,null,null,null,null,null,null,null,null,null,null,null,null,null,null,null,null,null,null,""]
[null,null,null,null,null,null,null,null,null,null,null,null,null,null,null,null,null,null,null,null,null,null,null,null,null,null,null,null,null,null,null,""]
[null,null,null,null,null,null,null,null,null,null,null,null,null,null,null,null,null,null,null,null,null,null,null,null,null,null,null,null,null,null,null,""]
[null,null,null,null,null,null,null,null,null,null,null,null,null,null,null,null,null,null,null,null,null,null,null,null,null,null,null,null,null,null,null,""]
[null,null,null,null,null,null,null,null,null,null,null,null,null,null,null,null,null,null,null,null,null,null,null,null,null,null,null,null,null,null,null,""]
[null,null,null,null,null,null,null,null,null,null,null,null,null,null,null,null,null,null,null,null,null,null,null,null,null,null,null,null,null,null,null,""]
[null,null,null,null,null,null,null,null,null,null,null,null,null,null,null,null,null,null,null,null,null,null,null,null,null,null,null,null,null,null,null,""]
[null,null,null,null,null,null,null,null,null,null,null,null,null,null,null,null,null,null,null,null,null,null,null,null,null,null,null,null,null,null,null,""]
[null,null,null,null,null,null,null,null,null,null,null,null,null,null,null,null,null,null,null,null,null,null,null,null,null,null,null,null,null,null,null,""]
[null,null,null,null,null,null,null,null,null,null,null,null,null,null,null,null,null,null,null,null,null,null,null,null,null,null,null,null,null,null,null,""]
[null,null,null,null,null,null,null,null,null,null,null,null,null,null,null,null,null,null,null,null,null,null,null,null,null,null,null,null,null,null,null,""]
[null,null,null,null,null,null,null,null,null,null,null,null,null,null,null,null,null,null,null,null,null,null,null,null,null,null,null,null,null,null,null,""]
[null,null,null,null,null,null,null,null,null,null,null,null,null,null,null,null,null,null,null,null,null,null,null,null,null,null,null,null,null,null,null,""]
[null,null,null,null,null,null,null,null,null,null,null,null,null,null,null,null,null,null,null,null,null,null,null,null,null,null,null,null,null,null,null,""]
[null,null,null,null,null,null,null,null,null,null,null,null,null,null,null,null,null,null,null,null,null,null,null,null,null,null,null,null,null,null,null,""]
[null,null,null,null,null,null,null,null,null,null,null,null,null,null,null,null,null,null,null,null,null,null,null,null,null,null,null,null,null,null,null,""]
[null,null,null,null,null,null,null,null,null,null,null,null,null,null,null,null,null,null,null,null,null,null,null,null,null,null,null,null,null,null,null,""]
[null,null,null,null,null,null,null,null,null,null,null,null,null,null,null,null,null,null,null,null,null,null,null,null,null,null,null,null,null,null,null,""]
[null,null,null,null,null,null,null,null,null,null,null,null,null,null,null,null,null,null,null,null,null,null,null,null,null,null,null,null,null,null,null,""]
[null,null,null,null,null,null,null,null,null,null,null,null,null,null,null,null,null,null,null,null,null,null,null,null,null,null,null,null,null,null,null,""]
[null,null,null,null,null,null,null,null,null,null,null,null,null,null,null,null,null,null,null,null,null,null,null,null,null,null,null,null,null,null,null,""]
[null,null,null,null,null,null,null,null,null,null,null,null,null,null,null,null,null,null,null,null,null,null,null,null,null,null,null,null,null,null,null,""]
[null,null,null,null,null,null,null,null,null,null,null,null,null,null,null,null,null,null,null,null,null,null,null,null,null,null,null,null,null,null,null,""]
[null,null,null,null,null,null,null,null,null,null,null,null,null,null,null,null,null,null,null,null,null,null,null,null,null,null,null,null,null,null,null,""]
[null,null,null,null,null,null,null,null,null,null,null,null,null,null,null,null,null,null,null,null,null,null,null,null,null,null,null,null,null,null,null,""]
[null,null,null,null,null,null,null,null,null,null,null,null,null,null,null,null,null,null,null,null,null,null,null,null,null,null,null,null,null,null,null,""]
[null,null,null,null,null,null,null,null,null,null,null,null,null,null,null,null,null,null,null,null,null,null,null,null,null,null,null,null,null,null,null,""]
[null,null,null,null,null,null,null,null,null,null,null,null,null,null,null,null,null,null,null,null,null,null,null,null,null,null,null,null,null,null,null,""]
[null,null,null,null,null,null,null,null,null,null,null,null,null,null,null,null,null,null,null,null,null,null,null,null,null,null,null,null,null,null,null,""]
[null,null,null,null,null,null,null,null,null,null,null,null,null,null,null,null,null,null,null,null,null,null,null,null,null,null,null,null,null,null,null,""]
[null,null,null,null,null,null,null,null,null,null,null,null,null,null,null,null,null,null,null,null,null,null,null,null,null,null,null,null,null,null,null,""]
[null,null,null,null,null,null,null,null,null,null,null,null,null,null,null,null,null,null,null,null,null,null,null,null,null,null,null,null,null,null,null,""]
[null,null,null,null,null,null,null,null,null,null,null,null,null,null,null,null,null,null,null,null,null,null,null,null,null,null,null,null,null,null,null,""]
[null,null,null,null,null,null,null,null,null,null,null,null,null,null,null,null,null,null,null,null,null,null,null,null,null,null,null,null,null,null,null,""]
[null,null,null,null,null,null,null,null,null,null,null,null,null,null,null,null,null,null,null,null,null,null,null,null,null,null,null,null,null,null,null,""]
[null,null,null,null,null,null,null,null,null,null,null,null,null,null,null,null,null,null,null,null,null,null,null,null,null,null,null,null,null,null,null,""]
[null,null,null,null,null,null,null,null,null,null,null,null,null,null,null,null,null,null,null,null,null,null,null,null,null,null,null,null,null,null,null,""]
[null,null,null,null,null,null,null,null,null,null,null,null,null,null,null,null,null,null,null,null,null,null,null,null,null,null,null,null,null,null,null,""]
[null,null,null,null,null,null,null,null,null,null,null,null,null,null,null,null,null,null,null,null,null,null,null,null,null,null,null,null,null,null,null,""]
[null,null,null,null,null,null,null,null,null,null,null,null,null,null,null,null,null,null,null,null,null,null,null,null,null,null,null,null,null,null,null,""]
[null,null,null,null,null,null,null,null,null,null,null,null,null,null,null,null,null,null,null,null,null,null,null,null,null,null,null,null,null,null,null,""]
[null,null,null,null,null,null,null,null,null,null,null,null,null,null,null,null,null,null,null,null,null,null,null,null,null,null,null,null,null,null,null,{"$f":"IF(AG92=\"\",\"\",VLOOKUP(AG92,$AC$17:$AD$21,2,0))","v":""}]
[null,null,null,null,null,null,null,null,null,null,null,null,null,null,null,null,null,null,null,null,null,null,null,null,null,null,null,null,null,null,null,""]
[null,null,null,null,null,null,null,null,null,null,null,null,null,null,null,null,null,null,null,null,null,null,null,null,null,null,null,null,null,null,null,""]
[null,null,null,null,null,null,null,null,null,null,null,null,null,null,null,null,null,null,null,null,null,null,null,null,null,null,null,null,null,null,null,""]
[null,null,null,null,null,null,null,null,null,null,null,null,null,null,null,null,null,null,null,null,null,null,null,null,null,null,null,null,null,null,null,""]
[null,null,null,null,null,null,null,null,null,null,null,null,null,null,null,null,null,null,null,null,null,null,null,null,null,null,null,null,null,null,null,""]
[null,null,null,null,null,null,null,null,null,null,null,null,null,null,null,null,null,null,null,null,null,null,null,null,null,null,null,null,null,null,null,""]
[null,null,null,null,null,null,null,null,null,null,null,null,null,null,null,null,null,null,null,null,null,null,null,null,null,null,null,null,null,null,null,""]
[null,null,null,null,null,null,null,null,null,null,null,null,null,null,null,null,null,null,null,null,null,null,null,null,null,null,null,null,null,null,null,""]
[null,null,null,null,null,null,null,null,null,null,null,null,null,null,null,null,null,null,null,null,null,null,null,null,null,null,null,null,null,null,null,""]
[null,null,null,null,null,null,null,null,null,null,null,null,null,null,null,null,null,null,null,null,null,null,null,null,null,null,null,null,null,null,null,""]
[null,null,null,null,null,null,null,null,null,null,null,null,null,null,null,null,null,null,null,null,null,null,null,null,null,null,null,null,null,null,null,""]
[null,null,null,null,null,null,null,null,null,null,null,null,null,null,null,null,null,null,null,null,null,null,null,null,null,null,null,null,null,null,null,""]
[null,null,null,null,null,null,null,null,null,null,null,null,null,null,null,null,null,null,null,null,null,null,null,null,null,null,null,null,null,null,null,""]
[null,null,null,null,null,null,null,null,null,null,null,null,null,null,null,null,null,null,null,null,null,null,null,null,null,null,null,null,null,null,null,""]
[null,null,null,null,null,null,null,null,null,null,null,null,null,null,null,null,null,null,null,null,null,null,null,null,null,null,null,null,null,null,null,""]
[null,null,null,null,null,null,null,null,null,null,null,null,null,null,null,null,null,null,null,null,null,null,null,null,null,null,null,null,null,null,null,""]
[null,null,null,null,null,null,null,null,null,null,null,null,null,null,null,null,null,null,null,null,null,null,null,null,null,null,null,null,null,null,null,""]
[null,null,null,null,null,null,null,null,null,null,null,null,null,null,null,null,null,null,null,null,null,null,null,null,null,null,null,null,null,null,null,""]
[null,null,null,null,null,null,null,null,null,null,null,null,null,null,null,null,null,null,null,null,null,null,null,null,null,null,null,null,null,null,null,""]
[null,null,null,null,null,null,null,null,null,null,null,null,null,null,null,null,null,null,null,null,null,null,null,null,null,null,null,null,null,null,null,""]
[null,null,null,null,null,null,null,null,null,null,null,null,null,null,null,null,null,null,null,null,null,null,null,null,null,null,null,null,null,null,null,""]
[null,null,null,null,null,null,null,null,null,null,null,null,null,null,null,null,null,null,null,null,null,null,null,null,null,null,null,null,null,null,null,""]
[null,null,null,null,null,null,null,null,null,null,null,null,null,null,null,null,null,null,null,null,null,null,null,null,null,null,null,null,null,null,null,""]
[null,null,null,null,null,null,null,null,null,null,null,null,null,null,null,null,null,null,null,null,null,null,null,null,null,null,null,null,null,null,null,""]

{"sheet":"followup","index":9,"n_rows":116,"n_cols":33,"rows_kept":116,"cut":false,"hidden":false,"merged":[[12,3,12,7],[0,0,7,1],[0,2,6,9],[10,17,10,22],[11,12,11,19],[11,21,11,26],[21,28,24,31],[13,3,13,7],[13,12,13,19],[13,21,13,26],[15,3,15,7],[15,12,15,19],[15,21,15,26],[17,3,17,7],[17,12,17,19],[17,21,17,26],[19,0,20,9],[19,10,20,26]]}
["الاتحاد السعودي للفروسية ",null,"برنامج الصافنات لتحكيم قفز الحواجز"]
[]
[]
[]
[]
[]
[]
[]
["التاريخ"]
["اسم البطوله",null,null,null,null,null,{"$f":"COUNTA(A23:AA34)","v":0}]
["رقم الشوط",null,null,null,null,null,null,null,null,null,null,null,null,null,null,null,null,"لجنة التحكيم"]
["اسم الشوط"]
["الارتفاع",null,"الترتيب ","ترتيب الفرسان الأوائل ",null,null,null,null,"الزمن","الأخطاء"]
["الزمن ",null,"الأول",{"$f":"B23","v":0},null,null,null,null,{"$f":"E23","v":0},{"$f":"H23","v":0}]
["المسافه"]
["السرعة",null,"الثاني",{"$f":"B24","v":0},null,null,null,null,{"$f":"E24","v":0},{"$f":"H24","v":0}]
["عدد الفرسان",null,null,null,null,null,null,null,null,null,null,null,null,null,null,null,null,null,null,null,null,null,null,null,null,null,null,null,1,"إمتناع"]
["نوع السباق",null,"الثالث",{"$f":"B25","v":0},null,null,null,null,{"$f":"E25","v":0},{"$f":"H25","v":0},null,null,null,null,null,null,null,null,null,null,null,null,null,null,null,null,null,null,2,"خطأ بالمسار"]
["موقع البطوله",null,null,null,null,null,null,null,null,null,null,null,null,null,null,null,null,null,null,null,null,null,null,null,null,null,null,null,3,"انسحاب"]
[null,null,null,null,null,null,null,null,null,null,"برنامج القفز",null,null,null,null,null,null,null,null,null,null,null,null,null,null,null,null,null,4,"اصابه"]
[null,null,null,null,null,null,null,null,null,null,null,null,null,null,null,null,null,null,null,null,null,null,null,null,null,null,null,null,5,"تجاوز زمن الانتضار"]
["م","اسم الفـــــــــاىس ","رقم الفارس","الجواد","الزمن","أخطاء الحواجز","أخطاء الزمن","مجموع الأخطاء","ملاحظه","مفتاح اساسي",null,null,null,null,null,null,null,null,null,null,null,null,null,null,null,null,null,null,"اسماء الفرسان المتعثرين "]
[]
[null,null,null,null,null,null,null,null,null,null,null,null,null,null,null,null,null,null,null,null,null,null,null,null,null,null,null,null,null,null,null,null,"SPEED"]
[]
[null,null,null,null,null,null,null,null,null,null,null,null,null,null,null,null,null,null,null,null,null,null,null,null,null,null,null,null,"رقم ","اسم الفارس","الجواد","سبب الاستبعاد"]
[null,null,null,null,null,null,null,null,null,null,null,null,null,null,null,null,null,null,null,null,null,null,null,null,null,null,null,null,null,null,null,{"$f":"IF(AG27=\"\",\"\",VLOOKUP(AG27,$AC$17:$AD$21,2,0))","v":""}]
[null,null,null,null,null,null,null,null,null,null,null,null,null,null,null,null,null,null,null,null,null,null,null,null,null,null,null,null,null,null,null,{"$f":"IF(AG28=\"\",\"\",VLOOKUP(AG28,$AC$17:$AD$21,2,0))","v":""}]
[null,null,null,null,null,null,null,null,null,null,null,null,null,null,null,null,null,null,null,null,null,null,null,null,null,null,null,null,null,null,null,""]
[null,null,null,null,null,null,null,null,null,null,null,null,null,null,null,null,null,null,null,null,null,null,null,null,null,null,null,null,null,null,null,""]
[null,null,null,null,null,null,null,null,null,null,null,null,null,null,null,null,null,null,null,null,null,null,null,null,null,null,null,null,null,null,null,""]
[null,null,null,null,null,null,null,null,null,null,null,null,null,null,null,null,null,null,null,null,null,null,null,null,null,null,null,null,null,null,null,""]
[null,null,null,null,null,null,null,null,null,null,null,null,null,null,null,null,null,null,null,null,null,null,null,null,null,null,null,null,null,null,null,""]
[null,null,null,null,null,null,null,null,null,null,null,null,null,null,null,null,null,null,null,null,null,null,null,null,null,null,null,null,null,null,null,""]
[null,null,null,null,null,null,null,null,null,null,null,null,null,null,null,null,null,null,null,null,null,null,null,null,null,null,null,null,null,null,null,""]
[null,null,null,null,null,null,null,null,null,null,null,null,null,null,null,null,null,null,null,null,null,null,null,null,null,null,null,null,null,null,null,""]
[null,null,null,null,null,null,null,null,null,null,null,null,null,null,null,null,null,null,null,null,null,null,null,null,null,null,null,null,null,null,null,""]
[null,null,null,null,null,null,null,null,null,null,null,null,null,null,null,null,null,null,null,null,null,null,null,null,null,null,null,null,null,null,null,""]
[null,null,null,null,null,null,null,null,null,null,null,null,null,null,null,null,null,null,null,null,null,null,null,null,null,null,null,null,null,null,null,""]
[null,null,null,null,null,null,null,null,null,null,null,null,null,null,null,null,null,null,null,null,null,null,null,null,null,null,null,null,null,null,null,""]
[null,null,null,null,null,null,null,null,null,null,null,null,null,null,null,null,null,null,null,null,null,null,null,null,null,null,null,null,null,null,null,""]
[null,null,null,null,null,null,null,null,null,null,null,null,null,null,null,null,null,null,null,null,null,null,null,null,null,null,null,null,null,null,null,""]
[null,null,null,null,null,null,null,null,null,null,null,null,null,null,null,null,null,null,null,null,null,null,null,null,null,null,null,null,null,null,null,""]
[null,null,null,null,null,null,null,null,null,null,null,null,null,null,null,null,null,null,null,null,null,null,null,null,null,null,null,null,null,null,null,""]
[null,null,null,null,null,null,null,null,null,null,null,null,null,null,null,null,null,null,null,null,null,null,null,null,null,null,null,null,null,null,null,""]
[null,null,null,null,null,null,null,null,null,null,null,null,null,null,null,null,null,null,null,null,null,null,null,null,null,null,null,null,null,null,null,""]
[null,null,null,null,null,null,null,null,null,null,null,null,null,null,null,null,null,null,null,null,null,null,null,null,null,null,null,null,null,null,null,""]
[null,null,null,null,null,null,null,null,null,null,null,null,null,null,null,null,null,null,null,null,null,null,null,null,null,null,null,null,null,null,null,""]
[null,null,null,null,null,null,null,null,null,null,null,null,null,null,null,null,null,null,null,null,null,null,null,null,null,null,null,null,null,null,null,""]
[null,null,null,null,null,null,null,null,null,null,null,null,null,null,null,null,null,null,null,null,null,null,null,null,null,null,null,null,null,null,null,""]
[null,null,null,null,null,null,null,null,null,null,null,null,null,null,null,null,null,null,null,null,null,null,null,null,null,null,null,null,null,null,null,""]
[null,null,null,null,null,null,null,null,null,null,null,null,null,null,null,null,null,null,null,null,null,null,null,null,null,null,null,null,null,null,null,""]
[null,null,null,null,null,null,null,null,null,null,null,null,null,null,null,null,null,null,null,null,null,null,null,null,null,null,null,null,null,null,null,""]
[null,null,null,null,null,null,null,null,null,null,null,null,null,null,null,null,null,null,null,null,null,null,null,null,null,null,null,null,null,null,null,""]
[null,null,null,null,null,null,null,null,null,null,null,null,null,null,null,null,null,null,null,null,null,null,null,null,null,null,null,null,null,null,null,""]
[null,null,null,null,null,null,null,null,null,null,null,null,null,null,null,null,null,null,null,null,null,null,null,null,null,null,null,null,null,null,null,""]
[null,null,null,null,null,null,null,null,null,null,null,null,null,null,null,null,null,null,null,null,null,null,null,null,null,null,null,null,null,null,null,""]
[null,null,null,null,null,null,null,null,null,null,null,null,null,null,null,null,null,null,null,null,null,null,null,null,null,null,null,null,null,null,null,""]
[null,null,null,null,null,null,null,null,null,null,null,null,null,null,null,null,null,null,null,null,null,null,null,null,null,null,null,null,null,null,null,""]
[null,null,null,null,null,null,null,null,null,null,null,null,null,null,null,null,null,null,null,null,null,null,null,null,null,null,null,null,null,null,null,""]
[null,null,null,null,null,null,null,null,null,null,null,null,null,null,null,null,null,null,null,null,null,null,null,null,null,null,null,null,null,null,null,""]
[null,null,null,null,null,null,null,null,null,null,null,null,null,null,null,null,null,null,null,null,null,null,null,null,null,null,null,null,null,null,null,""]
[null,null,null,null,null,null,null,null,null,null,null,null,null,null,null,null,null,null,null,null,null,null,null,null,null,null,null,null,null,null,null,""]
[null,null,null,null,null,null,null,null,null,null,null,null,null,null,null,null,null,null,null,null,null,null,null,null,null,null,null,null,null,null,null,""]
[null,null,null,null,null,null,null,null,null,null,null,null,null,null,null,null,null,null,null,null,null,null,null,null,null,null,null,null,null,null,null,""]
[null,null,null,null,null,null,null,null,null,null,null,null,null,null,null,null,null,null,null,null,null,null,null,null,null,null,null,null,null,null,null,""]
[null,null,null,null,null,null,null,null,null,null,null,null,null,null,null,null,null,null,null,null,null,null,null,null,null,null,null,null,null,null,null,""]
[null,null,null,null,null,null,null,null,null,null,null,null,null,null,null,null,null,null,null,null,null,null,null,null,null,null,null,null,null,null,null,""]
[null,null,null,null,null,null,null,null,null,null,null,null,null,null,null,null,null,null,null,null,null,null,null,null,null,null,null,null,null,null,null,""]
[null,null,null,null,null,null,null,null,null,null,null,null,null,null,null,null,null,null,null,null,null,null,null,null,null,null,null,null,null,null,null,""]
[null,null,null,null,null,null,null,null,null,null,null,null,null,null,null,null,null,null,null,null,null,null,null,null,null,null,null,null,null,null,null,""]
[null,null,null,null,null,null,null,null,null,null,null,null,null,null,null,null,null,null,null,null,null,null,null,null,null,null,null,null,null,null,null,""]
[null,null,null,null,null,null,null,null,null,null,null,null,null,null,null,null,null,null,null,null,null,null,null,null,null,null,null,null,null,null,null,""]
[null,null,null,null,null,null,null,null,null,null,null,null,null,null,null,null,null,null,null,null,null,null,null,null,null,null,null,null,null,null,null,""]
[null,null,null,null,null,null,null,null,null,null,null,null,null,null,null,null,null,null,null,null,null,null,null,null,null,null,null,null,null,null,null,""]
[null,null,null,null,null,null,null,null,null,null,null,null,null,null,null,null,null,null,null,null,null,null,null,null,null,null,null,null,null,null,null,""]
[null,null,null,null,null,null,null,null,null,null,null,null,null,null,null,null,null,null,null,null,null,null,null,null,null,null,null,null,null,null,null,""]
[null,null,null,null,null,null,null,null,null,null,null,null,null,null,null,null,null,null,null,null,null,null,null,null,null,null,null,null,null,null,null,""]
[null,null,null,null,null,null,null,null,null,null,null,null,null,null,null,null,null,null,null,null,null,null,null,null,null,null,null,null,null,null,null,""]
[null,null,null,null,null,null,null,null,null,null,null,null,null,null,null,null,null,null,null,null,null,null,null,null,null,null,null,null,null,null,null,""]
[null,null,null,null,null,null,null,null,null,null,null,null,null,null,null,null,null,null,null,null,null,null,null,null,null,null,null,null,null,null,null,""]
[null,null,null,null,null,null,null,null,null,null,null,null,null,null,null,null,null,null,null,null,null,null,null,null,null,null,null,null,null,null,null,""]
[null,null,null,null,null,null,null,null,null,null,null,null,null,null,null,null,null,null,null,null,null,null,null,null,null,null,null,null,null,null,null,""]
[null,null,null,null,null,null,null,null,null,null,null,null,null,null,null,null,null,null,null,null,null,null,null,null,null,null,null,null,null,null,null,""]
[null,null,null,null,null,null,null,null,null,null,null,null,null,null,null,null,null,null,null,null,null,null,null,null,null,null,null,null,null,null,null,""]
[null,null,null,null,null,null,null,null,null,null,null,null,null,null,null,null,null,null,null,null,null,null,null,null,null,null,null,null,null,null,null,""]
[null,null,null,null,null,null,null,null,null,null,null,null,null,null,null,null,null,null,null,null,null,null,null,null,null,null,null,null,null,null,null,""]
[null,null,null,null,null,null,null,null,null,null,null,null,null,null,null,null,null,null,null,null,null,null,null,null,null,null,null,null,null,null,null,""]
[null,null,null,null,null,null,null,null,null,null,null,null,null,null,null,null,null,null,null,null,null,null,null,null,null,null,null,null,null,null,null,""]
[null,null,null,null,null,null,null,null,null,null,null,null,null,null,null,null,null,null,null,null,null,null,null,null,null,null,null,null,null,null,null,""]
[null,null,null,null,null,null,null,null,null,null,null,null,null,null,null,null,null,null,null,null,null,null,null,null,null,null,null,null,null,null,null,""]
[null,null,null,null,null,null,null,null,null,null,null,null,null,null,null,null,null,null,null,null,null,null,null,null,null,null,null,null,null,null,null,{"$f":"IF(AG92=\"\",\"\",VLOOKUP(AG92,$AC$17:$AD$21,2,0))","v":""}]
[null,null,null,null,null,null,null,null,null,null,null,null,null,null,null,null,null,null,null,null,null,null,null,null,null,null,null,null,null,null,null,""]
[null,null,null,null,null,null,null,null,null,null,null,null,null,null,null,null,null,null,null,null,null,null,null,null,null,null,null,null,null,null,null,""]
[null,null,null,null,null,null,null,null,null,null,null,null,null,null,null,null,null,null,null,null,null,null,null,null,null,null,null,null,null,null,null,""]
[null,null,null,null,null,null,null,null,null,null,null,null,null,null,null,null,null,null,null,null,null,null,null,null,null,null,null,null,null,null,null,""]
[null,null,null,null,null,null,null,null,null,null,null,null,null,null,null,null,null,null,null,null,null,null,null,null,null,null,null,null,null,null,null,""]
[null,null,null,null,null,null,null,null,null,null,null,null,null,null,null,null,null,null,null,null,null,null,null,null,null,null,null,null,null,null,null,""]
[null,null,null,null,null,null,null,null,null,null,null,null,null,null,null,null,null,null,null,null,null,null,null,null,null,null,null,null,null,null,null,""]
[null,null,null,null,null,null,null,null,null,null,null,null,null,null,null,null,null,null,null,null,null,null,null,null,null,null,null,null,null,null,null,""]
[null,null,null,null,null,null,null,null,null,null,null,null,null,null,null,null,null,null,null,null,null,null,null,null,null,null,null,null,null,null,null,""]
[null,null,null,null,null,null,null,null,null,null,null,null,null,null,null,null,null,null,null,null,null,null,null,null,null,null,null,null,null,null,null,""]
[null,null,null,null,null,null,null,null,null,null,null,null,null,null,null,null,null,null,null,null,null,null,null,null,null,null,null,null,null,null,null,""]
[null,null,null,null,null,null,null,null,null,null,null,null,null,null,null,null,null,null,null,null,null,null,null,null,null,null,null,null,null,null,null,""]
[null,null,null,null,null,null,null,null,null,null,null,null,null,null,null,null,null,null,null,null,null,null,null,null,null,null,null,null,null,null,null,""]
[null,null,null,null,null,null,null,null,null,null,null,null,null,null,null,null,null,null,null,null,null,null,null,null,null,null,null,null,null,null,null,""]
[null,null,null,null,null,null,null,null,null,null,null,null,null,null,null,null,null,null,null,null,null,null,null,null,null,null,null,null,null,null,null,""]
[null,null,null,null,null,null,null,null,null,null,null,null,null,null,null,null,null,null,null,null,null,null,null,null,null,null,null,null,null,null,null,""]
[null,null,null,null,null,null,null,null,null,null,null,null,null,null,null,null,null,null,null,null,null,null,null,null,null,null,null,null,null,null,null,""]
[null,null,null,null,null,null,null,null,null,null,null,null,null,null,null,null,null,null,null,null,null,null,null,null,null,null,null,null,null,null,null,""]
[null,null,null,null,null,null,null,null,null,null,null,null,null,null,null,null,null,null,null,null,null,null,null,null,null,null,null,null,null,null,null,""]
[null,null,null,null,null,null,null,null,null,null,null,null,null,null,null,null,null,null,null,null,null,null,null,null,null,null,null,null,null,null,null,""]
[null,null,null,null,null,null,null,null,null,null,null,null,null,null,null,null,null,null,null,null,null,null,null,null,null,null,null,null,null,null,null,""]
[null,null,null,null,null,null,null,null,null,null,null,null,null,null,null,null,null,null,null,null,null,null,null,null,null,null,null,null,null,null,null,""]
[null,null,null,null,null,null,null,null,null,null,null,null,null,null,null,null,null,null,null,null,null,null,null,null,null,null,null,null,null,null,null,""]
[null,null,null,null,null,null,null,null,null,null,null,null,null,null,null,null,null,null,null,null,null,null,null,null,null,null,null,null,null,null,null,""]

{"sheet":"joker","index":10,"n_rows":116,"n_cols":33,"rows_kept":116,"cut":false,"hidden":false,"merged":[[12,3,12,7],[0,0,7,1],[0,2,6,9],[10,17,10,22],[11,12,11,19],[11,21,11,26],[21,28,24,31],[13,3,13,7],[13,12,13,19],[13,21,13,26],[15,3,15,7],[15,12,15,19],[15,21,15,26],[17,3,17,7],[17,12,17,19],[17,21,17,26],[19,0,20,9],[19,10,20,26]]}
["الاتحاد السعودي للفروسية ",null,"برنامج الصافنات لتحكيم قفز الحواجز"]
[]
[]
[]
[]
[]
[]
[]
["التاريخ"]
["اسم البطوله","بطولة الصافنات ",null,null,null,null,{"$f":"COUNTA(A23:AA1000)","v":341}]
["رقم الشوط",1,null,null,null,null,null,null,null,null,null,null,null,null,null,null,null,"لجنة التحكيم"]
["اسم الشوط","العالي ( جوكر)",null,null,null,null,null,null,null,null,null,null,"عبد العزيز حكمي ",null,null,null,null,null,null,null,null,"علي عريشي"]
["الارتفاع",50,"الترتيب ","ترتيب الفرسان الأوائل ",null,null,null,null,"الزمن","الأخطاء"]
["الزمن ",56,"الأول",{"$f":"B23","v":"إبراهيم جوخبي "},null,null,null,null,{"$f":"E23","v":22},{"$f":"H23","v":0},null,null,"محمد نجيب حكمي ",null,null,null,null,null,null,null,null,"عبد الرحمن سهلي "]
["المسافه"]
["السرعة",null,"الثاني",{"$f":"B24","v":"جمال رضوان"},null,null,null,null,{"$f":"E24","v":23},{"$f":"H24","v":0},null,null,"ولي عجيبي"]
["عدد الفرسان",17,null,null,null,null,null,null,null,null,null,null,null,null,null,null,null,null,null,null,null,null,null,null,null,null,null,null,1,"إمتناع"]
["نوع السباق","joker","الثالث",{"$f":"B25","v":"أحمد ضعافي كلبي "},null,null,null,null,{"$f":"E25","v":50},{"$f":"H25","v":0},null,null,"خالد سالمين",null,null,null,null,null,null,null,null,"علي عجيبي",null,null,null,null,null,null,2,"خطأ بالمسار"]
["موقع البطوله","نادي الصافنات",null,null,null,null,null,null,null,null,null,null,null,null,null,null,null,null,null,null,null,null,null,null,null,null,null,null,3,"انسحاب"]
[null,null,null,null,null,null,null,null,null,null,"برنامج القفز",null,null,null,null,null,null,null,null,null,null,null,null,null,null,null,null,null,4,"اصابه"]
[null,null,null,null,null,null,null,null,null,null,null,null,null,null,null,null,null,null,null,null,null,null,null,null,null,null,null,null,5,"تجاوز زمن الانتضار"]
["م","اسم الفـــــــــاىس ","رقم الفارس","الجواد","الزمن","أخطاء الحواجز","أخطاء الزمن","مجموع الأخطاء"," النقاط","مفتاح اساسي",1,2,3,"4A","4B","4C","5A","5B",6,7,8,9,10,11,12," "," ",null,"اسماء الفرسان المتعثرين "]
[1,"إبراهيم جوخبي ",2,"عزام ",22,"معدل",0,0,64,"s2",1,2,3,4,5,6,7,16,20,0,0,0,0,0,0,0,0]
[2,"جمال رضوان",11,"سدرك",23,null,0,0,50,"jok11",1,2,3,4,5,12,7,16,0,0,0,0,0,0,0,0,0,null,null,null,null,null,"SPEED"]
[3,"أحمد ضعافي كلبي ",10,"السكب ",50,null,0,0,50,"jok10",1,2,3,4,5,12,7,16,0,0,0,0,0,0,0,0,0]
[4,"أحمد ضعافي كلبي ",8,"الجارح ",37.970999999999997,"معدل",0,0,44,"s8",1,2,3,4,5,6,7,16,0,0,0,0,0,0,0,0,0,null,"رقم ","اسم الفارس","الجواد","سبب الاستبعاد"]
[5,"محمد أحمد الأشقر ",1,"كتن ",42.552999999999997,"معدل",0,0,44,"s1",1,2,3,4,5,6,7,16,0,0,0,0,0,0,0,0,0,null,1,"محسن كليبي","اماندا",{"$f":"IF(AG27=\"\",\"\",VLOOKUP(AG27,$AC$17:$AD$21,2,0))","v":"انسحاب"},3]
[6,"أحمد زعله",5,"دايموند",42.67,null,0,0,44,"s5",1,2,3,4,5,6,7,16,0,0,0,0,0,0,0,0,0,null,2,"سامر عسيري","براق",{"$f":"IF(AG28=\"\",\"\",VLOOKUP(AG28,$AC$17:$AD$21,2,0))","v":"خطأ بالمسار"},2]
[7,"جمال رضوان",3,"سدرك",53.005000000000003,null,0,0,44,"s3",1,2,3,4,5,6,7,16,0,0,0,0,0,0,0,0,0,null,null,null,null,""]
[8,"إبراهيم جوخبي ",13,"عزام ",19,null,0,0,27,"jok13",1,2,3,4,5,12,0,0,0,0,0,0,0,0,0,0,0,null,null,null,null,""]
[9,"جمال رضوان",12,"سدرك",20,null,0,0,27,"jok12",1,2,3,4,5,12,0,0,0,0,0,0,0,0,0,0,0,null,null,null,null,""]
[10,"خالد الضمدي",6,"جيفاقو",39.640999999999998,null,0,0,12,"s6",1,2,3,4,5,6,7,-16,0,0,0,0,0,0,0,0,0,null,null,null,null,""]
[11,"محمد عقيلي",4,"دونا",45.898000000000003,null,0,3.5,12,"s4",1,2,3,4,5,6,7,-16,0,0,0,0,0,0,0,0,0,null,null,null,null,""]
[12,"عزام البواب",7,"جايد",53.975999999999999,null,0,4,6,"s7",1,0,3,4,5,6,7,-16,0,0,0,0,0,0,0,0,0,null,null,null,null,""]
[13,"أحمد غازي فقيه",9,"-",43.591999999999999,null,0,0,5,"s9",1,2,3,4,5,6,0,-16,0,0,0,0,0,0,0,0,0,null,null,null,null,""]
[null,null,null,null,null,null,null,null,null,null,null,null,null,null,null,null,null,null,null,null,null,null,null,null,null,null,null,null,null,null,null,""]
[null,null,null,null,null,null,null,null,null,null,null,null,null,null,null,null,null,null,null,null,null,null,null,null,null,null,null,null,null,null,null,""]
[null,null,null,null,null,null,null,null,null,null,null,null,null,null,null,null,null,null,null,null,null,null,null,null,null,null,null,null,null,null,null,""]
[null,null,null,null,null,null,null,null,null,null,null,null,null,null,null,null,null,null,null,null,null,null,null,null,null,null,null,null,null,null,null,""]
[null,null,null,null,null,null,null,null,null,null,null,null,null,null,null,null,null,null,null,null,null,null,null,null,null,null,null,null,null,null,null,""]
[null,null,null,null,null,null,null,null,null,null,null,null,null,null,null,null,null,null,null,null,null,null,null,null,null,null,null,null,null,null,null,""]
[null,null,null,null,null,null,null,null,null,null,null,null,null,null,null,null,null,null,null,null,null,null,null,null,null,null,null,null,null,null,null,""]
[null,null,null,null,null,null,null,null,null,null,null,null,null,null,null,null,null,null,null,null,null,null,null,null,null,null,null,null,null,null,null,""]
[null,null,null,null,null,null,null,null,null,null,null,null,null,null,null,null,null,null,null,null,null,null,null,null,null,null,null,null,null,null,null,""]
[null,null,null,null,null,null,null,null,null,null,null,null,null,null,null,null,null,null,null,null,null,null,null,null,null,null,null,null,null,null,null,""]
[null,null,null,null,null,null,null,null,null,null,null,null,null,null,null,null,null,null,null,null,null,null,null,null,null,null,null,null,null,null,null,""]
[null,null,null,null,null,null,null,null,null,null,null,null,null,null,null,null,null,null,null,null,null,null,null,null,null,null,null,null,null,null,null,""]
[null,null,null,null,null,null,null,null,null,null,null,null,null,null,null,null,null,null,null,null,null,null,null,null,null,null,null,null,null,null,null,""]
[null,null,null,null,null,null,null,null,null,null,null,null,null,null,null,null,null,null,null,null,null,null,null,null,null,null,null,null,null,null,null,""]
[null,null,null,null,null,null,null,null,null,null,null,null,null,null,null,null,null,null,null,null,null,null,null,null,null,null,null,null,null,null,null,""]
[null,null,null,null,null,null,null,null,null,null,null,null,null,null,null,null,null,null,null,null,null,null,null,null,null,null,null,null,null,null,null,""]
[null,null,null,null,null,null,null,null,null,null,null,null,null,null,null,null,null,null,null,null,null,null,null,null,null,null,null,null,null,null,null,""]
[null,null,null,null,null,null,null,null,null,null,null,null,null,null,null,null,null,null,null,null,null,null,null,null,null,null,null,null,null,null,null,""]
[null,null,null,null,null,null,null,null,null,null,null,null,null,null,null,null,null,null,null,null,null,null,null,null,null,null,null,null,null,null,null,""]
[null,null,null,null,null,null,null,null,null,null,null,null,null,null,null,null,null,null,null,null,null,null,null,null,null,null,null,null,null,null,null,""]
[null,null,null,null,null,null,null,null,null,null,null,null,null,null,null,null,null,null,null,null,null,null,null,null,null,null,null,null,null,null,null,""]
[null,null,null,null,null,null,null,null,null,null,null,null,null,null,null,null,null,null,null,null,null,null,null,null,null,null,null,null,null,null,null,""]
[null,null,null,null,null,null,null,null,null,null,null,null,null,null,null,null,null,null,null,null,null,null,null,null,null,null,null,null,null,null,null,""]
[null,null,null,null,null,null,null,null,null,null,null,null,null,null,null,null,null,null,null,null,null,null,null,null,null,null,null,null,null,null,null,""]
[null,null,null,null,null,null,null,null,null,null,null,null,null,null,null,null,null,null,null,null,null,null,null,null,null,null,null,null,null,null,null,""]
[null,null,null,null,null,null,null,null,null,null,null,null,null,null,null,null,null,null,null,null,null,null,null,null,null,null,null,null,null,null,null,""]
[null,null,null,null,null,null,null,null,null,null,null,null,null,null,null,null,null,null,null,null,null,null,null,null,null,null,null,null,null,null,null,""]
[null,null,null,null,null,null,null,null,null,null,null,null,null,null,null,null,null,null,null,null,null,null,null,null,null,null,null,null,null,null,null,""]
[null,null,null,null,null,null,null,null,null,null,null,null,null,null,null,null,null,null,null,null,null,null,null,null,null,null,null,null,null,null,null,""]
[null,null,null,null,null,null,null,null,null,null,null,null,null,null,null,null,null,null,null,null,null,null,null,null,null,null,null,null,null,null,null,""]
[null,null,null,null,null,null,null,null,null,null,null,null,null,null,null,null,null,null,null,null,null,null,null,null,null,null,null,null,null,null,null,""]
[null,null,null,null,null,null,null,null,null,null,null,null,null,null,null,null,null,null,null,null,null,null,null,null,null,null,null,null,null,null,null,""]
[null,null,null,null,null,null,null,null,null,null,null,null,null,null,null,null,null,null,null,null,null,null,null,null,null,null,null,null,null,null,null,""]
[null,null,null,null,null,null,null,null,null,null,null,null,null,null,null,null,null,null,null,null,null,null,null,null,null,null,null,null,null,null,null,""]
[null,null,null,null,null,null,null,null,null,null,null,null,null,null,null,null,null,null,null,null,null,null,null,null,null,null,null,null,null,null,null,""]
[null,null,null,null,null,null,null,null,null,null,null,null,null,null,null,null,null,null,null,null,null,null,null,null,null,null,null,null,null,null,null,""]
[null,null,null,null,null,null,null,null,null,null,null,null,null,null,null,null,null,null,null,null,null,null,null,null,null,null,null,null,null,null,null,""]
[null,null,null,null,null,null,null,null,null,null,null,null,null,null,null,null,null,null,null,null,null,null,null,null,null,null,null,null,null,null,null,""]
[null,null,null,null,null,null,null,null,null,null,null,null,null,null,null,null,null,null,null,null,null,null,null,null,null,null,null,null,null,null,null,""]
[null,null,null,null,null,null,null,null,null,null,null,null,null,null,null,null,null,null,null,null,null,null,null,null,null,null,null,null,null,null,null,""]
[null,null,null,null,null,null,null,null,null,null,null,null,null,null,null,null,null,null,null,null,null,null,null,null,null,null,null,null,null,null,null,""]
[null,null,null,null,null,null,null,null,null,null,null,null,null,null,null,null,null,null,null,null,null,null,null,null,null,null,null,null,null,null,null,""]
[null,null,null,null,null,null,null,null,null,null,null,null,null,null,null,null,null,null,null,null,null,null,null,null,null,null,null,null,null,null,null,""]
[null,null,null,null,null,null,null,null,null,null,null,null,null,null,null,null,null,null,null,null,null,null,null,null,null,null,null,null,null,null,null,""]
[null,null,null,null,null,null,null,null,null,null,null,null,null,null,null,null,null,null,null,null,null,null,null,null,null,null,null,null,null,null,null,""]
[null,null,null,null,null,null,null,null,null,null,null,null,null,null,null,null,null,null,null,null,null,null,null,null,null,null,null,null,null,null,null,""]
[null,null,null,null,null,null,null,null,null,null,null,null,null,null,null,null,null,null,null,null,null,null,null,null,null,null,null,null,null,null,null,""]
[null,null,null,null,null,null,null,null,null,null,null,null,null,null,null,null,null,null,null,null,null,null,null,null,null,null,null,null,null,null,null,""]
[null,null,null,null,null,null,null,null,null,null,null,null,null,null,null,null,null,null,null,null,null,null,null,null,null,null,null,null,null,null,null,""]
[null,null,null,null,null,null,null,null,null,null,null,null,null,null,null,null,null,null,null,null,null,null,null,null,null,null,null,null,null,null,null,""]
[null,null,null,null,null,null,null,null,null,null,null,null,null,null,null,null,null,null,null,null,null,null,null,null,null,null,null,null,null,null,null,""]
[null,null,null,null,null,null,null,null,null,null,null,null,null,null,null,null,null,null,null,null,null,null,null,null,null,null,null,null,null,null,null,""]
[null,null,null,null,null,null,null,null,null,null,null,null,null,null,null,null,null,null,null,null,null,null,null,null,null,null,null,null,null,null,null,""]
[null,null,null,null,null,null,null,null,null,null,null,null,null,null,null,null,null,null,null,null,null,null,null,null,null,null,null,null,null,null,null,""]
[null,null,null,null,null,null,null,null,null,null,null,null,null,null,null,null,null,null,null,null,null,null,null,null,null,null,null,null,null,null,null,""]
[null,null,null,null,null,null,null,null,null,null,null,null,null,null,null,null,null,null,null,null,null,null,null,null,null,null,null,null,null,null,null,""]
[null,null,null,null,null,null,null,null,null,null,null,null,null,null,null,null,null,null,null,null,null,null,null,null,null,null,null,null,null,null,null,{"$f":"IF(AG92=\"\",\"\",VLOOKUP(AG92,$AC$17:$AD$21,2,0))","v":""}]
[null,null,null,null,null,null,null,null,null,null,null,null,null,null,null,null,null,null,null,null,null,null,null,null,null,null,null,null,null,null,null,""]
[null,null,null,null,null,null,null,null,null,null,null,null,null,null,null,null,null,null,null,null,null,null,null,null,null,null,null,null,null,null,null,""]
[null,null,null,null,null,null,null,null,null,null,null,null,null,null,null,null,null,null,null,null,null,null,null,null,null,null,null,null,null,null,null,""]
[null,null,null,null,null,null,null,null,null,null,null,null,null,null,null,null,null,null,null,null,null,null,null,null,null,null,null,null,null,null,null,""]
[null,null,null,null,null,null,null,null,null,null,null,null,null,null,null,null,null,null,null,null,null,null,null,null,null,null,null,null,null,null,null,""]
[null,null,null,null,null,null,null,null,null,null,null,null,null,null,null,null,null,null,null,null,null,null,null,null,null,null,null,null,null,null,null,""]
[null,null,null,null,null,null,null,null,null,null,null,null,null,null,null,null,null,null,null,null,null,null,null,null,null,null,null,null,null,null,null,""]
[null,null,null,null,null,null,null,null,null,null,null,null,null,null,null,null,null,null,null,null,null,null,null,null,null,null,null,null,null,null,null,""]
[null,null,null,null,null,null,null,null,null,null,null,null,null,null,null,null,null,null,null,null,null,null,null,null,null,null,null,null,null,null,null,""]
[null,null,null,null,null,null,null,null,null,null,null,null,null,null,null,null,null,null,null,null,null,null,null,null,null,null,null,null,null,null,null,""]
[null,null,null,null,null,null,null,null,null,null,null,null,null,null,null,null,null,null,null,null,null,null,null,null,null,null,null,null,null,null,null,""]
[null,null,null,null,null,null,null,null,null,null,null,null,null,null,null,null,null,null,null,null,null,null,null,null,null,null,null,null,null,null,null,""]
[null,null,null,null,null,null,null,null,null,null,null,null,null,null,null,null,null,null,null,null,null,null,null,null,null,null,null,null,null,null,null,""]
[null,null,null,null,null,null,null,null,null,null,null,null,null,null,null,null,null,null,null,null,null,null,null,null,null,null,null,null,null,null,null,""]
[null,null,null,null,null,null,null,null,null,null,null,null,null,null,null,null,null,null,null,null,null,null,null,null,null,null,null,null,null,null,null,""]
[null,null,null,null,null,null,null,null,null,null,null,null,null,null,null,null,null,null,null,null,null,null,null,null,null,null,null,null,null,null,null,""]
[null,null,null,null,null,null,null,null,null,null,null,null,null,null,null,null,null,null,null,null,null,null,null,null,null,null,null,null,null,null,null,""]
[null,null,null,null,null,null,null,null,null,null,null,null,null,null,null,null,null,null,null,null,null,null,null,null,null,null,null,null,null,null,null,""]
[null,null,null,null,null,null,null,null,null,null,null,null,null,null,null,null,null,null,null,null,null,null,null,null,null,null,null,null,null,null,null,""]
[null,null,null,null,null,null,null,null,null,null,null,null,null,null,null,null,null,null,null,null,null,null,null,null,null,null,null,null,null,null,null,""]
[null,null,null,null,null,null,null,null,null,null,null,null,null,null,null,null,null,null,null,null,null,null,null,null,null,null,null,null,null,null,null,""]
[null,null,null,null,null,null,null,null,null,null,null,null,null,null,null,null,null,null,null,null,null,null,null,null,null,null,null,null,null,null,null,""]
[null,null,null,null,null,null,null,null,null,null,null,null,null,null,null,null,null,null,null,null,null,null,null,null,null,null,null,null,null,null,null,""]
[null,null,null,null,null,null,null,null,null,null,null,null,null,null,null,null,null,null,null,null,null,null,null,null,null,null,null,null,null,null,null,""]

{"sheet":"personal.data","index":11,"n_rows":8,"n_cols":4,"rows_kept":8,"cut":false,"hidden":false,"merged":[]}
["م","رقــــــم الفــــــــارس","اســــــــــــــــــم الفــــــــــــــارس ","سنـــة الميـــــلاد"]
[1,1234,"محمد",1406]
[2,452,"علي",1405]
[3,4536,"غازي",1400]
[4,1234,"محمد",1407]
[5,452,"علي",1405]
[6,99,99,99]
[7,1234,"محمد",1407]